Cogmind - Beta 9.6 @@@ ROGUE MODE // 2020.07.20 @ 02:55:42 // Winter2019/RPGLIKE Player: Hermelin Result: Destroyed by G-73 Enforcer with Phase Gun Performance ------------- Evolutions (8) 4000 Regions Visited (30) 6000 Robots Destroyed (617) 3085 Value Destroyed (28985) 28985 Prototype IDs (71) 1420 Alien Tech Used (5) 1000 Bonus (18707) 18707 TOTAL SCORE: 63197 Bonus ------- High Alert Combat Kills 7717 Follower Combat Kills 1319 Entered Garrisons 1400 Used RIF Installer 3500 Aligned with FarCom 300 Met Data Miner 300 Used Core Reset Matrix 3000 Scanned by Researcher 1000 Met Sigix 2000 Friendly Fire -1829 Cogmind --------- Core Integrity 0/1200 Matter 350/400 Energy 2235/2310 System Corruption 0% Temperature Cool (4) Movement Hovering (60) Location -2/Section 7 Parts ------- > --- POWER (3) -------- Light Neutrino Core Light Antimatter Reactor Light Quantum Reactor > --- PROPULSION (4) --- Cooled Gravmag System Combat Antigrav System Combat Antigrav System Combat Antigrav System > --- UTILITY (14) ----- Power Amplifier Advanced Heat Sink Superbattery Advanced Signal Interpreter Advanced Target Analyzer Advanced Core Analyzer Improved Maneuvering Thrusters Advanced Phase Shifter Centrium Medium Armor Plating Powered Armor Advanced Force Field Improved Hacking Suite Improved System Shield System Restoration Module > --- WEAPON (5) ------- 8R-AWN's Boregun Sigix Terminator Sigix Broadsword > --- INVENTORY (5) ---- Sigix Containment Pod Peak State ------------ > --- POWER ------------ Light Neutrino Core Light Antimatter Reactor Light Quantum Reactor > --- PROPULSION ------- Cooled Gravmag System Combat Antigrav System Combat Antigrav System Combat Antigrav System > --- UTILITY ---------- Power Amplifier Advanced Heat Sink Superbattery Advanced Signal Interpreter Experimental Targeting Computer Advanced Target Analyzer Advanced Core Analyzer Improved Maneuvering Thrusters Advanced Phase Shifter Centrium Medium Armor Plating Powered Armor Advanced Force Field Improved Hacking Suite Improved System Shield > --- WEAPON ----------- 8R-AWN's Boregun Sigix Broadsword Sigix Broadsword > --- INVENTORY -------- High-powered Transdimensional Reconstructor Sigix Terminator Sigix Containment Pod [Rating: 215] Favorites ----------- Power Light Neutrino Core Engine Light Angular Momentum Engine Power Core Light Neutrino Core Reactor Antimatter Reactor Propulsion Combat Antigrav System Treads Light Treads Wheel Wheel Hover Unit Combat Antigrav System Flight Unit Flight Unit Utility Superbattery Device Improved Maneuvering Thrusters Storage Superbattery Processor Advanced Core Analyzer Hackware Improved Hacking Suite Protection Powered Armor Weapon 8R-AWN's Boregun Energy Gun Enhanced Quantum Rifle Energy Cannon Advanced Beam Cannon Ballistic Gun 8R-AWN's Boregun Ballistic Cannon Graviton Cannon Launcher Gamma Bomb Array Special Weapon Plasma Cutter Impact Weapon Powered Hammer Slashing Weapon Power Sword Piercing Weapon Lance Special Melee Weapon Advanced Datajack Build | -11 -10 -10 -9 -9 -9 -8 -8 -8 -7 -7 -6 -6 -6 -6 -6 -6 -6 -6 -5 -5 -5 -4 -4 -3 -3 -3 -3 -2 -2 -2 ------- Run | Scr Mat Min Mat Min Exi Min Mat Gar Fac Gar Fac Was Fac Gar Fac Low Low Dat Pro Fac Gar Fac Gar Res Gar Res Gar Res Qua Sec Slots Evolved 22 | 3 1 2 4 . . 2 2 1 . 1 1 . . . . . 1 . . 1 . 1 . 1 . . . 1 . . Power 2 | . . . 1 . . . . . . . . . . . . . . . . . . 1 . . . . . . . . Propulsion 3 | 1 . 1 . . . . 1 . . . . . . . . . . . . . . . . . . . . . . . Utility 13 | 1 1 1 2 . . 2 . 1 . 1 1 . . . . . . . . 1 . . . 1 . . . 1 . . Weapon 4 | 1 . . 1 . . . 1 . . . . . . . . . 1 . . . . . . . . . . . . . Parts Attached 222 | 5 11 7 28 . 15 4 14 2 10 1 4 2 8 . 14 7 1 7 2 25 3 3 5 1 1 2 4 5 27 4 Power 22 | 1 1 . 6 . 2 1 . . . . 2 1 2 . 1 . . . . 3 . 1 1 . . . . . . . Engine 7 | 1 . . 2 . 1 1 . . . . 1 . 1 . . . . . . . . . . . . . . . . . Core 9 | . 1 . 4 . 1 . . . . . 1 . 1 . . . . . . 1 . . . . . . . . . . Reactor 6 | . . . . . . . . . . . . 1 . . 1 . . . . 2 . 1 1 . . . . . . . Propulsion 37 | 2 5 6 6 . 1 . 3 . 3 . . . . . 2 . . . 1 3 2 . . . . . . . 3 . Treads 1 | . 1 . . . . . . . . . . . . . . . . . . . . . . . . . . . . . Leg . | . . . . . . . . . . . . . . . . . . . . . . . . . . . . . . . Wheel 2 | 2 . . . . . . . . . . . . . . . . . . . . . . . . . . . . . . Hover 27 | . 1 2 6 . 1 . 3 . 3 . . . . . 2 . . . 1 3 2 . . . . . . . 3 . Flight 7 | . 3 4 . . . . . . . . . . . . . . . . . . . . . . . . . . . . Utility 112 | . 3 1 10 . 7 3 4 2 1 1 2 1 5 . 8 6 . 7 1 14 1 1 3 1 1 2 3 4 17 3 Device 49 | . 1 . 2 . 2 1 . . 1 . . . 2 . 5 3 . 1 . 9 . 1 . 1 . 2 1 3 11 3 Storage 13 | . 1 . 1 . 1 . . . . . 2 . . . . 3 . 2 1 . . . . . . . 1 . 1 . Processor 12 | . 1 . 2 . 1 2 1 1 . . . . . . . . . 1 . 1 . . . . . . . . 2 . Hackware 12 | . . . . . 3 . 1 . . . . . 2 . . . . . . 1 . . 3 . 1 . 1 . . . Protection 26 | . . 1 5 . . . 2 1 . 1 . 1 1 . 3 . . 3 . 3 1 . . . . . . 1 3 . Artifact . | . . . . . . . . . . . . . . . . . . . . . . . . . . . . . . . Weapon 51 | 2 2 . 6 . 5 . 7 . 6 . . . 1 . 3 1 1 . . 5 . 1 1 . . . 1 1 7 1 Energy Gun 2 | . . . . . . . 1 . . . . . . . . . . . . . . . . . . . . . 1 . Energy Cannon 1 | . . . 1 . . . . . . . . . . . . . . . . . . . . . . . . . . . Ballistic Gun 8 | 2 . . . . 2 . 1 . . . . . . . 2 . . . . . . . . . . . . . 1 . Ballistic Cannon 1 | . . . . . . . . . . . . . . . . . . . . . . . . . . . . . 1 . Launcher 8 | . . . . . 1 . . . 1 . . . . . 1 . . . . 1 . . 1 . . . . 1 1 1 Special Weapon 4 | . . . 1 . 1 . . . 1 . . . . . . . . . . . . . . . . . 1 . . . Impact Weapon 5 | . . . 1 . . . 1 . 2 . . . . . . . 1 . . . . . . . . . . . . . Slashing Weapon 18 | . 2 . 3 . 1 . 4 . 2 . . . 1 . . 1 . . . 1 . . . . . . . . 3 . Piercing Weapon 3 | . . . . . . . . . . . . . . . . . . . . 3 . . . . . . . . . . Special Melee Weapon 1 | . . . . . . . . . . . . . . . . . . . . . . 1 . . . . . . . . Unidentified Prototypes 15 | . . . . . 3 . 1 . 1 . . . 1 . 1 . . 2 . 1 1 . . . . . . . 4 . Parts Lost 5 | . . . 1 . . 1 . . . . . . . . 2 . . . . . . . . . . . . 1 . . Power . | . . . . . . . . . . . . . . . . . . . . . . . . . . . . . . . Propulsion . | . . . . . . . . . . . . . . . . . . . . . . . . . . . . . . . Utility 4 | . . . . . . 1 . . . . . . . . 2 . . . . . . . . . . . . 1 . . Weapon 1 | . . . 1 . . . . . . . . . . . . . . . . . . . . . . . . . . . Highest Loss Streak 1 | . . . 1 . . 1 . . . . . . . . 1 . . . . . . . . . . . . 1 . . Average Slot Usage (%) 98 | . 98 97 99 100 99 99 99 100 100 100 99 92 89 90 94 99 100 99 99 99 100 100 99 100 100 100 100 99 94 92 Engine 2 | . 7 . 1 7 6 6 5 5 5 5 3 . . . . . . . . . . . . . . . . . . . Core 5 | . 5 11 12 7 7 6 5 5 5 5 4 5 4 4 4 4 4 4 4 4 4 4 4 4 4 4 4 3 3 3 Reactor 2 | . . . . . . . . . . . . 2 4 4 3 4 4 4 4 3 4 7 8 8 8 8 8 7 7 7 Hover 17 | . 4 2 21 21 21 19 20 21 21 20 19 19 19 19 18 19 18 18 17 17 17 16 16 16 16 16 16 15 14 15 Flight 1 | . 11 25 . . . . . . . . . . . . . . . . . . . . . . . . . . . . Device 11 | . 3 11 14 14 9 7 5 5 5 5 4 4 4 9 12 19 18 18 18 19 17 16 12 14 12 12 13 16 21 23 Storage 5 | . 13 11 7 7 7 6 5 5 5 5 7 5 4 4 4 3 4 4 4 4 4 4 4 4 4 4 2 3 3 3 Processor 13 | . 11 11 7 7 9 5 16 18 21 20 19 19 18 14 14 14 13 13 13 13 13 12 12 12 12 12 12 11 13 11 Hackware 7 | . . . . . 2 18 11 10 10 10 9 9 9 9 7 4 4 4 4 8 8 8 11 12 15 16 16 15 8 7 Protection 6 | . . 2 11 14 12 6 4 5 5 10 9 5 3 4 7 9 9 8 9 3 7 8 8 8 8 8 8 5 3 7 Ballistic Gun 7 | . 9 . . . 1 13 11 10 10 10 9 9 9 9 8 9 9 9 9 8 8 8 8 8 8 8 8 7 5 3 Launcher 1 | . . . . . . . . . . . . . . . 2 4 4 4 4 4 4 . 4 4 4 4 4 3 1 . Impact Weapon 3 | . . . . 7 6 . 4 5 8 10 9 9 6 4 4 . 1 4 4 1 . . . . . . . . . . Slashing Weapon 6 | . 17 22 18 14 9 . 5 5 1 . . . 1 4 1 3 4 4 4 3 4 4 4 4 4 4 4 3 5 7 Naked Turns . | . . . . . . . . . . . . . . . . . . . . . . . . . . . . . . . Heaviest Build 109 | 6 13 21 41 41 43 45 49 61 63 70 79 95 96 96 97 84 86 86 86 86 89 101 101 100 100 101 101 104 109 107 Greatest Support 122 | 25 25 27 44 44 68 68 78 78 122 122 122 122 122 122 122 122 122 122 122 122 115 102 102 102 102 102 102 102 122 122 Greatest Overweight (x) 1 | . 1 . 1 . . . . . . . . . . . . . . . . . . . . . . . . 1 1 . Average Overweight (x) . | . . . . . . . . . . . . . . . . . . . . . . . . . . . . . . . Largest Inventory Capacity 5 | 2 2 2 3 3 3 3 3 3 3 3 3 3 4 4 4 4 4 4 4 4 4 4 4 4 4 4 4 4 5 5 Average Capacity 3 | 1 2 2 2 3 3 3 3 3 3 3 3 3 3 4 4 4 4 4 4 4 4 4 4 4 4 4 4 4 4 5 Most Carried 5 | 2 2 2 3 3 3 3 3 3 3 3 3 3 4 4 4 4 4 4 4 4 4 4 4 4 4 4 4 4 5 5 Average Carried 3 | 1 1 1 2 3 2 2 2 2 2 2 2 2 3 4 3 3 4 4 4 3 4 3 3 3 3 3 4 3 3 4 Final Capacity 5 | 2 2 2 3 3 3 3 3 3 3 3 3 3 4 4 4 4 4 4 4 4 4 4 4 4 4 4 4 4 5 5 Final Carried 5 | 2 2 2 3 3 3 3 3 3 3 2 3 3 4 4 4 4 4 4 4 4 4 4 4 3 4 4 4 3 5 2 Class Distribution -------------------- 85% | Scavenger-Mutant 6% | Mutant 5% | Scavenger-Scout Dominant Class ---------------- Mutant | -10/Materials Mutant | -10/Mines Scavenger-Mutant | -9/Materials Scavenger-Mutant | -9/Mines Scavenger-Mutant | -9/Exiles Scavenger-Mutant | -8/Mines Scavenger-Mutant | -8/Materials Scavenger-Mutant | -8/Garrison Scavenger-Mutant | -7/Factory Scavenger-Mutant | -7/Garrison Scavenger-Mutant | -6/Factory Scavenger-Mutant | -6/Waste Scavenger-Mutant | -6/Factory Scavenger-Mutant | -6/Garrison Scavenger-Mutant | -6/Factory Scavenger-Mutant | -6/Lower Caves Scavenger-Mutant | -6/Lower Caves Scavenger-Mutant | -6/Data Miner Scavenger-Mutant | -5/Proximity Caves Scavenger-Mutant | -5/Factory Scavenger-Mutant | -5/Garrison Scavenger-Mutant | -4/Factory Scavenger-Mutant | -4/Garrison Scavenger-Mutant | -3/Research Scavenger-Mutant | -3/Garrison Scavenger-Mutant | -3/Research Scavenger-Mutant | -3/Garrison Scavenger-Mutant | -2/Research Scavenger-Scout | -2/Quarantine Scavenger-Scout | -2/Section 7 Resources | -11 -10 -10 -9 -9 -9 -8 -8 -8 -7 -7 -6 -6 -6 -6 -6 -6 -6 -6 -5 -5 -5 -4 -4 -3 -3 -3 -3 -2 -2 -2 ----------- Run | Scr Mat Min Mat Min Exi Min Mat Gar Fac Gar Fac Was Fac Gar Fac Low Low Dat Pro Fac Gar Fac Gar Res Gar Res Gar Res Qua Sec Matter Collected 16639 | 250 197 70 277 . 172 611 1076 446 640 310 326 548 839 1105 1396 380 658 250 1136 597 889 330 482 46 390 82 852 535 1749 . Remotely . | . . . . . . . . . . . . . . . . . . . . . . . . . . . . . . . Salvage Created 34716 | . 655 416 1171 57 614 1014 2303 1163 1264 883 391 1815 1442 1886 3077 884 1451 444 2085 911 1360 735 715 135 708 176 989 771 5008 193 Parts 1852 | . 45 25 75 6 32 58 128 58 76 42 18 37 80 97 189 54 70 20 109 67 82 30 51 5 54 16 53 37 224 14 Haulers Intercepted 19 | . 2 . 5 . . . 4 . 4 . 1 . . . 1 . . . . . . . . . . . . 1 1 . Recyclers Shooed 9 | . . . . . . . . . 1 . 1 . 1 . 2 . . . . 2 . . . . . . . 1 1 . Parts Field Recycled . | . . . . . . . . . . . . . . . . . . . . . . . . . . . . . . . Retrieved Matter . | . . . . . . . . . . . . . . . . . . . . . . . . . . . . . . . Parts Self-Destructed 192 | . . . . . . . . . . . . . . . . 18 83 . 91 . . . . . . . . . . . Prevented 13 | . . . . . . . . . . . . . . . . . 1 . 12 . . . . . . . . . . . Kills | -11 -10 -10 -9 -9 -9 -8 -8 -8 -7 -7 -6 -6 -6 -6 -6 -6 -6 -6 -5 -5 -5 -4 -4 -3 -3 -3 -3 -2 -2 -2 ------- Run | Scr Mat Min Mat Min Exi Min Mat Gar Fac Gar Fac Was Fac Gar Fac Low Low Dat Pro Fac Gar Fac Gar Res Gar Res Gar Res Qua Sec Combat Hostiles Destroyed 476 | . 16 16 25 3 3 20 32 18 21 14 3 5 16 29 40 12 20 4 27 16 27 6 14 1 13 1 18 6 48 2 Melee 95 | . 11 16 25 2 1 . 7 1 5 1 . . . . 1 . 1 . 1 . 1 . . . . . . . 20 2 Guns 348 | . 5 . . . . 19 25 17 16 13 3 5 15 29 31 12 19 4 18 16 21 6 14 1 11 1 18 6 23 . Cannons 2 | . . . . . 1 1 . . . . . . . . . . . . . . . . . . . . . . . . AOE 30 | . . . . . 1 . . . . . . . 1 . 8 . . . 8 . 5 . . . 2 . . . 5 . Classes Destroyed 29 | . 5 1 2 1 2 4 1 . 1 . . 1 . 1 4 2 1 . 1 . . . . . . . . . 2 . Worker 25 | . . . 1 . . 3 3 . 1 . . . . . 3 . . . . 3 . . . . . 1 . 1 9 . Builder 24 | . . . . . . 1 2 . 1 . 1 . 1 . 11 . . . . 3 . . . . . 1 . 1 2 . Tunneler 4 | . . . . 1 . . . . . . . . 1 . 1 . . . . . . . . . . 1 . . . . Hauler 19 | . 2 . 5 . . . 4 . 4 . 1 . . . 1 . . . . . . . . . . . . 1 1 . Recycler 10 | . . . . . . 1 2 . 1 . . . 1 . 3 . . . . . . . . . . 1 . . 1 . Carrier 1 | . . . . . . . . . . . . . . . . . 1 . . . . . . . . . . . . . Mechanic 1 | . . . . . . . . . . . . . . . 1 . . . . . . . . . . . . . . . Operator 15 | . 1 . 2 . . . 2 . . . 1 . 2 . 2 . . . . 2 . . . . . . . . 2 1 Turret 3 | . . . . . 3 . . . . . . . . . . . . . . . . . . . . . . . . . Watcher 21 | . 2 . 2 . . . 4 1 2 . 1 . 2 . 3 . . . . 1 . . . . . . . 1 1 1 Swarmer 102 | . 3 5 14 3 . 3 3 6 6 4 . . . 11 . . 3 . 6 4 8 . 6 . 7 . 7 . 3 . Saboteur 1 | . . . . . . . . . . . . . . . 1 . . . . . . . . . . . . . . . Grunt 181 | . 13 9 4 . . 13 17 10 11 5 1 . 4 6 27 3 7 . 8 7 14 . 3 . . . 6 . 13 . Brawler 13 | . . . . . . . 1 1 . 2 2 . 2 2 . . 2 . . . . . . . . . . . 1 . Duelist 11 | . . . . . . 2 1 . 1 . . . . 2 1 . 3 . . . . . . . 1 . . . . . Protector 5 | . . . . . . . . . . . . . . . 1 . . . 3 . 1 . . . . . . . . . Researcher 6 | . . . . . . . . . . . . . . . . . . . . . . . . . . . . . 6 . Sentry 62 | . . . 8 . . . 10 1 2 2 1 . 5 6 2 . 2 . 3 1 2 6 4 1 1 1 1 2 1 . Demolisher 4 | . . . . . . . . . . . . . . . . . . . 3 . 1 . . . . . . . . . Specialist 3 | . . . . . . . . . . . . . . 2 . . 1 . . . . . . . . . . . . . Hunter 42 | . . . . . . 2 . . . 1 . . 4 . 2 . . . 2 3 . . . . 2 . 3 4 17 2 Programmer 21 | . . . . . . . . . 1 . . . 1 . 5 . 1 . . 1 . . . . 1 . 1 . 10 . Behemoth 5 | . . . . . . . . . . . . . . . 1 . . . 1 . 1 . 1 . 1 . . . . . Compactor 5 | . . . . . . . . . . . . 5 . . . . . . . . . . . . . . . . . . Enhanced Grunt 4 | . . . . . . . . . . . . . . . . . . 4 . . . . . . . . . . . . Lightning 2 | . . . . . . . . . . . . . . . . . . . . . . . . . . . . . 2 . Fortress 1 | . . . . . . . . . . . . . . . . . . . . . . . . . . . . . 1 . Zionite 3 | . . . . . 3 . . . . . . . . . . . . . . . . . . . . . . . . . Master Thief 5 | . . . . . . . . . . . . . . . . 3 1 . 1 . . . . . . . . . . . Assembled 9 | . . 2 . . 7 . . . . . . . . . . . . . . . . . . . . . . . . . Thug 4 | . . . . . . . . . . . . . . . . 3 1 . . . . . . . . . . . . . Savage 1 | . . . . . . . . . . . . . . . . 1 . . . . . . . . . . . . . . Mutant 2 | . . . . . . . . . . . . . . . . 2 . . . . . . . . . . . . . . Best Kill Streak 29 | . 3 5 10 3 1 5 5 6 6 6 3 3 4 7 29 5 4 4 12 12 8 2 5 1 5 2 15 4 11 2 Combat Bots Only 15 | . 3 5 8 3 1 3 5 6 5 6 2 3 3 7 15 5 4 4 12 5 8 2 5 1 5 1 15 3 8 2 Max Kills in Single Turn 11 | . 1 1 1 1 5 2 2 3 2 2 1 1 2 2 11 1 2 1 3 2 4 1 2 1 2 1 1 1 3 1 Gunslinging 1 | . . . . . . . . 1 . 1 . . 1 . . . 1 . . . 1 . 1 . . . . . . . Exploded 7 | . . . . . 1 . . . . . . . 1 . 7 . . . 3 . 4 . . . 2 . . . 3 . Melee 1 | . 1 1 1 1 1 . 1 1 1 1 . . . . 1 . 1 . 1 . 1 . . . . . . . 1 1 Uniques/NPCs Destroyed 2 | . . . . . 2 . . . . . . . . . . . . . . . . . . . . . . . . . EX-BIN (-9/Exiles) EX-HEX (-9/Exiles) 8R-AWN (-9/Exiles) EX-DEC (-9/Exiles) Combat | -11 -10 -10 -9 -9 -9 -8 -8 -8 -7 -7 -6 -6 -6 -6 -6 -6 -6 -6 -5 -5 -5 -4 -4 -3 -3 -3 -3 -2 -2 -2 -------- Run | Scr Mat Min Mat Min Exi Min Mat Gar Fac Gar Fac Was Fac Gar Fac Low Low Dat Pro Fac Gar Fac Gar Res Gar Res Gar Res Qua Sec Damage Taken 20599 | . 566 403 1044 56 644 818 770 388 439 507 333 . 603 2117 1675 171 376 523 1322 458 409 110 416 13 475 13 1557 819 3341 233 Core 12928 | . 457 349 684 36 396 578 532 264 297 305 188 . 312 1081 929 122 209 292 769 315 248 50 251 10 250 5 905 549 2376 169 Absorbed by Shields 11554 | . 30 157 429 26 251 309 302 149 176 212 131 . 69 842 630 63 138 184 495 467 438 115 435 14 499 14 1188 859 2687 245 Redirected to Core 11247 | . 344 150 543 27 345 515 414 221 256 255 179 . 277 975 836 122 209 292 617 277 202 50 208 10 234 5 797 480 2257 150 Core Remaining (%) 92 | 100 . 98 . . . 74 . 100 . 100 . . . . . . . . 100 . 100 . 100 . . . 64 . . . Volleys Fired 1233 | . 23 . 1 . 46 70 78 42 45 25 13 21 59 91 103 26 54 15 94 46 55 25 37 2 32 6 67 61 96 . Largest 3 | . 2 . 1 . 1 3 2 2 2 2 2 2 2 2 3 2 2 2 2 2 2 2 2 2 2 2 2 2 3 . Hottest 154 | . 40 . 20 . 33 80 60 60 60 60 60 60 60 60 140 80 60 60 80 60 80 60 60 60 80 60 80 60 154 . Shots Fired 2378 | . 46 . 1 . 46 125 156 71 90 50 26 43 117 182 209 51 108 30 182 92 107 50 74 4 62 12 133 114 197 . Gun 2266 | . 46 . . . . 96 156 71 90 50 26 43 117 182 206 50 108 30 176 92 104 50 74 4 60 12 132 106 185 . Cannon . | . . . . . . . . . . . . . . . . . . . . . . . . . . . . . . . Launcher 25 | . . . . . 2 . . . . . . . . . 3 1 . . 6 . 3 . . . 2 . 1 . 7 . Special 87 | . . . 1 . 44 29 . . . . . . . . . . . . . . . . . . . . . 8 5 . Kinetic 2249 | . 46 . . . . 96 156 71 90 50 26 43 117 182 206 50 108 30 176 92 104 50 74 4 60 12 132 106 168 . Thermal 91 | . . . 1 . 44 29 . . . . . . . . . . . . . . . . . . . . . . 17 . Explosive 2 | . . . . . 2 . . . . . . . . . . . . . . . . . . . . . . . . . Electromagnetic 23 | . . . . . . . . . . . . . . . 3 1 . . 6 . 3 . . . 2 . 1 . 7 . Robot Hit Streak 40 | . 11 . . . 7 9 8 11 15 10 5 5 17 12 22 10 17 12 25 13 22 22 38 14 20 10 38 40 35 . Robot Miss Streak 7 | . 2 . 1 . 3 6 4 3 4 1 2 3 4 4 3 2 4 3 7 7 4 1 2 1 2 3 2 3 4 . Penetration Max 2 | . . . . . . 2 2 2 2 2 2 1 1 2 2 1 1 2 2 1 2 . 1 . 1 . 1 1 2 . Secondary Targets 52 | . . . . . . 2 3 6 . 3 1 . 3 2 5 1 2 1 2 1 3 . 3 . 1 . 7 . 6 . Max Gunslinging Chain 1 | . . . . . . 1 1 1 . 1 1 . 1 1 1 1 1 1 1 1 1 . 1 . 1 . 1 . 1 . Shots Hit Robots 2106 | . 70 35 91 8 82 69 125 64 65 59 19 28 72 105 144 36 70 23 128 66 82 41 64 3 47 10 106 98 289 7 Core Hits 1210 | . 29 16 34 2 40 41 68 45 48 33 14 17 38 69 122 23 45 13 98 37 54 15 35 1 39 6 55 30 139 4 Critical Hits 985 | . 1 1 3 . 7 34 63 29 30 21 17 23 46 62 88 16 41 13 81 35 46 23 34 2 24 3 58 44 139 1 Critical Kills 336 | . 1 . 1 . 5 15 27 10 15 10 4 4 19 19 37 9 16 4 20 16 15 5 9 1 8 1 13 8 43 1 Critical Parts Destroyed 462 | . . 1 2 . 2 18 32 15 11 10 9 2 21 34 43 5 19 9 46 18 23 11 10 . 5 1 24 21 70 . Melee Attacks 662 | . 58 53 131 12 59 . 44 21 22 35 7 . . 1 2 6 2 1 5 11 11 2 2 . 2 8 1 . 155 11 Impact 123 | . . . 5 10 41 . 3 4 13 35 7 . . . 1 . . 1 2 1 . . . . . . . . . . Slashing 519 | . 58 53 126 2 18 . 41 17 9 . . . . 1 1 6 2 . 3 5 10 . . . . 1 . . 155 11 Piercing 19 | . . . . . . . . . . . . . . . . . . . . 5 1 1 2 . 2 7 1 . . . Sneak Attacks 50 | . 3 2 12 2 1 . 5 1 2 1 1 . . . . . . 1 . 1 . . . . . 3 . . 14 1 Combat Hostiles 5 | . 1 2 . . . . . . . 1 . . . . . . . . . . . . . . . . . . 1 . Follow-up Attacks 94 | . 8 6 27 1 16 . 4 4 2 2 3 . . . 1 . . . . . . . . . . . . . 20 . Damage Inflicted 61255 | . 1382 860 2634 339 1974 1469 3479 2167 1679 1821 728 879 1504 2117 4844 1231 1562 617 3314 1733 1951 675 1189 54 1037 495 2073 1578 15132 738 Guns 32210 | . 333 . . . . 1272 2152 999 1155 796 514 879 1424 2117 3348 671 1526 483 2065 1104 1598 675 1189 54 796 111 1948 1511 3490 . Cannons . | . . . . . . . . . . . . . . . . . . . . . . . . . . . . . . . Explosions 5037 | . . . . . 285 . . . . . . . 80 . 1474 38 . . 1203 418 302 . . . 241 . 125 . 871 . Melee 23388 | . 1049 860 2624 339 1343 . 1327 1168 524 1025 214 . . . 22 522 36 134 46 211 51 . . . . 384 . . 10771 738 Ramming 67 | . . . . . . . . . . . . . . . . . . . . . . . . . . . . 67 . . Kinetic 31852 | . 333 . . . . 1272 2152 999 1155 796 514 879 1424 2117 3348 671 1526 483 2065 1104 1598 675 1189 54 796 111 1948 1511 3132 . Thermal 2852 | . . . 10 . 346 197 . . . . . . 80 . 776 . . . 531 . 52 . . . . . . . 860 . Explosive 935 | . . . . . 285 . . . . . . . . . 232 . . . . 418 . . . . . . . . . . Electromagnetic 2161 | . . . . . . . . . . . . . . . 466 38 . . 672 . 250 . . . 241 . 125 . 369 . Impact 3503 | . . . 239 339 992 . 22 276 240 1025 214 . . . 22 . . 134 . . . . . . . . . . . . Slashing 19290 | . 1049 860 2385 . 351 . 1305 892 284 . . . . . . 522 36 . 46 . 51 . . . . . . . 10771 738 Piercing 595 | . . . . . . . . . . . . . . . . . . . . 211 . . . . . 384 . . . . Highest Corruption 9 | . 1 1 . . . . . . 2 2 . 5 9 6 1 1 . . 1 2 2 . . . 1 1 1 . 5 1 Average Corruption 2 | . 1 1 . . . . . . 2 2 . 5 6 2 1 1 . . 1 2 2 . . . 1 1 1 . 1 1 Corruption Purged 20 | . . . . . . . . . . . . . 3 6 2 1 . . . . . . . . . 1 . . 6 1 Effects 130 | . 5 1 . . . . . . 3 7 . 7 43 22 2 . . . 7 5 11 . . . 4 2 2 . 9 . Message Errors 24 | . . . . . . . . . 1 1 . . 5 8 1 . . . 3 1 3 . . . 1 . . . . . Matter Fused 11 | . . . . . . . . . . . . . 8 2 . . . . . . . . . . . . . . 1 . Heat Flow Errors 7 | . . . . . . . . . . . . 1 2 1 . . . . . 1 2 . . . . . . . . . Energy Discharges 17 | . 2 . . . . . . . . 1 . 1 6 . . . . . . . 3 . . . . . 1 . 3 . Parts Rejected 1 | . . . . . . . . . . . . . 1 . . . . . . . . . . . . . . . . . Data Loss (minor) 26 | . 2 . . . . . . . 2 2 . 1 6 5 1 . . . 1 2 . . . . 1 1 . . 2 . Data Loss (major) 1 | . . . . . . . . . . . . . 1 . . . . . . . . . . . . . . . . . Misfires 2 | . . . . . . . . . . . . 1 1 . . . . . . . . . . . . . . . . . Targeting Errors 39 | . 1 1 . . . . . . . 3 . 3 11 6 . . . . 3 1 3 . . . 2 1 1 . 3 . Weapon Failures 2 | . . . . . . . . . . . . . 2 . . . . . . . . . . . . . . . . . Overload Shots . | . . . . . . . . . . . . . . . . . . . . . . . . . . . . . . . Overflow Damage 2768 | . 2 10 162 110 129 4 160 131 81 60 6 . . . 123 208 . 124 28 195 . . . . . 79 . . 1144 12 Projectiles 13 | . . . . . 9 4 . . . . . . . . . . . . . . . . . . . . . . . . Explosions 275 | . . . . . 8 . . . . . . . . . 123 . . . 28 78 . . . . . . . . 38 . Melee 2480 | . 2 10 162 110 112 . 160 131 81 60 6 . . . . 208 . 124 . 117 . . . . . 79 . . 1106 12 Knockbacks 9 | . . . . 2 3 . . 1 . 2 . . . . . . . 1 . . . . . . . . . . . . Impact 9 | . . . . 2 3 . . 1 . 2 . . . . . . . 1 . . . . . . . . . . . . Kinetic . | . . . . . . . . . . . . . . . . . . . . . . . . . . . . . . . Secondary . | . . . . . . . . . . . . . . . . . . . . . . . . . . . . . . . Self-Inflicted Damage 501 | . . . . . . . . . . . . . . . 207 . . . 193 . . . . . 21 . 10 33 37 . Shots 27 | . . . . . . . . . . . . . . . 7 . . . 13 . . . . . 2 . 1 . 4 . Rammed 2 | . 1 . . . . . . . . . . . . . . . . . . . . . . . . . . 1 . . Targets Rammed 2 | . 1 . . . . . . . . . . . . . . . . . . . . . . . . . . 1 . . Kicked . | . . . . . . . . . . . . . . . . . . . . . . . . . . . . . . . Crushed . | . . . . . . . . . . . . . . . . . . . . . . . . . . . . . . . Highest Temperature 331 | . 16 . . . . 108 7 7 7 60 47 260 143 331 269 24 32 16 236 179 168 110 122 36 117 36 208 97 . . Average Temperature 51 | . 4 . . . . 34 2 2 1 28 24 69 48 119 50 15 6 8 31 31 28 38 47 21 48 18 68 47 . . Received Heat Transfer 3852 | . 271 104 98 . . 276 306 198 112 104 68 . 142 494 469 42 103 68 210 80 100 28 56 . 40 4 128 32 291 28 Effects 8 | . . . . . . . . . . . . . . 5 . . . . . . . . . . . . 3 . . . Interference 8 | . . . . . . . . . . . . . . 5 . . . . . . . . . . . . 3 . . . Siege Activations . | . . . . . . . . . . . . . . . . . . . . . . . . . . . . . . . Robots Corrupted . | . . . . . . . . . . . . . . . . . . . . . . . . . . . . . . . Combat Hostiles . | . . . . . . . . . . . . . . . . . . . . . . . . . . . . . . . Parts Fried 17 | . . . 2 2 . . . . 2 . 2 . . . 1 2 . . 1 . 2 . . . 1 . 1 . 1 . Impact Corruptions 23 | . . . 3 5 5 . . 1 1 4 1 . . . 1 . . 2 . . . . . . . . . . . . Robots Melted . | . . . . . . . . . . . . . . . . . . . . . . . . . . . . . . . Combat Hostiles . | . . . . . . . . . . . . . . . . . . . . . . . . . . . . . . . Parts Melted 9 | . . . . . 2 . . . . . . 1 . . 2 1 1 . . 1 1 . . . . . . . . . Heat Transferred 3665 | . . . 37 . 1184 666 . . . . . . 50 . 500 . . . 410 . 50 . . . . . . . 768 . Parts Sabotaged 4 | . . . . . . . . . . . . . . . 4 . . . . . . . . . . . . . . . Parts Stolen 4 | . . . . . . . . . . . . . . . . 3 . . 1 . . . . . . . . . . . Parts Stripped . | . . . . . . . . . . . . . . . . . . . . . . . . . . . . . . . Power Chain Reactions 9 | . . . . . . . . . . . . . . . 3 . . . 3 . 1 . . . . . . . 2 . Missiles Intercepted . | . . . . . . . . . . . . . . . . . . . . . . . . . . . . . . . Alert | -11 -10 -10 -9 -9 -9 -8 -8 -8 -7 -7 -6 -6 -6 -6 -6 -6 -6 -6 -5 -5 -5 -4 -4 -3 -3 -3 -3 -2 -2 -2 ------- Run | Scr Mat Min Mat Min Exi Min Mat Gar Fac Gar Fac Was Fac Gar Fac Low Low Dat Pro Fac Gar Fac Gar Res Gar Res Gar Res Qua Sec Peak Influence 1775 | . 322 480 458 192 . 387 624 1092 1332 1400 990 376 735 1247 1775 . . . . 639 1050 701 896 549 811 630 974 757 1081 830 Average Influence 581 | . 131 276 257 181 . 237 380 720 855 1181 873 371 445 960 1179 . . . . 277 701 618 698 530 636 522 722 673 687 741 Maximum Alert Level 5 | . 1 2 2 . . 1 2 3 4 4 3 1 3 4 5 . . . . 2 3 3 3 2 3 2 3 3 3 3 Low Security (%) 15 | 100 76 27 32 100 . 33 8 3 . . . . . . . . . . . 38 . . . . . . . . . . Level 1 24 | . 23 60 62 . . 66 37 14 . . . 100 46 . . . . . . 48 7 . . . . . . . 28 . Level 2 26 | . . 12 4 . . . 54 31 15 . . . 51 17 17 . . . . 13 45 94 44 100 66 100 49 62 16 38 Level 3 25 | . . . . . . . . 50 68 30 100 . 1 43 28 . . . . . 47 5 55 . 33 . 50 37 54 61 Level 4 7 | . . . . . . . . . 15 69 . . . 38 38 . . . . . . . . . . . . . . . Level 5 1 | . . . . . . . . . . . . . . . 15 . . . . . . . . . . . . . . . High Security . | . . . . . . . . . . . . . . . . . . . . . . . . . . . . . . . Max Security . | . . . . . . . . . . . . . . . . . . . . . . . . . . . . . . . Squads Dispatched 75 | . 4 4 2 . . . 3 . 3 . 1 . 3 . 11 . 1 . . 11 . 1 . . . 1 . 7 19 4 Investigation 20 | . 3 4 . . . . 2 . . . . . . . 2 . . . . 4 . . . . . 1 . . 3 1 Extermination 10 | . . . . . . . . . 1 . . . 1 . 3 . . . . 1 . . . . . . . 1 3 . Reinforcement 33 | . 1 . 2 . . . 1 . 2 . . . 2 . 4 . . . . 3 . . . . . . . 5 11 2 Assault 8 | . . . . . . . . . . . 1 . . . 2 . 1 . . 1 . 1 . . . . . 1 1 . Garrison 4 | . . . . . . . . . . . . . . . . . . . . 2 . . . . . . . . 1 1 Intercept . | . . . . . . . . . . . . . . . . . . . . . . . . . . . . . . . Construction Impeded 5 | . . . . . . . . . . . . . . . 1 . . . . 1 . . . . . . . . 3 . Haulers Reinforced 5 | . . . . . . . . . 2 . . . . . . . . . . . . . . . . . . 1 2 . Alert ID Control Effect 2 | . . . . . . . . . . . . . . . . . . . . . . . . . . . . . 2 . Stealth | -11 -10 -10 -9 -9 -9 -8 -8 -8 -7 -7 -6 -6 -6 -6 -6 -6 -6 -6 -5 -5 -5 -4 -4 -3 -3 -3 -3 -2 -2 -2 --------- Run | Scr Mat Min Mat Min Exi Min Mat Gar Fac Gar Fac Was Fac Gar Fac Low Low Dat Pro Fac Gar Fac Gar Res Gar Res Gar Res Qua Sec Distress Signals 25 | . 2 . 3 . . . 4 . 2 . . . 3 . 2 . . . 2 1 . . . . . 1 . . 5 . Communications Jammed . | . . . . . . . . . . . . . . . . . . . . . . . . . . . . . . . Distress Signals . | . . . . . . . . . . . . . . . . . . . . . . . . . . . . . . . Times Spotted 768 | . 26 20 48 3 12 21 48 32 31 22 6 5 33 38 52 13 31 4 36 51 24 10 15 1 12 4 28 30 101 11 Peak Tracking Total 16 | . 5 5 9 3 9 3 5 4 6 7 4 3 4 9 10 5 10 4 9 8 5 5 7 1 4 2 16 16 14 5 Tactical Retreats 74 | . 1 2 2 . 3 3 4 5 1 7 . . . 10 3 . 2 . 4 8 1 . 2 . . . 3 2 11 . Traps | -11 -10 -10 -9 -9 -9 -8 -8 -8 -7 -7 -6 -6 -6 -6 -6 -6 -6 -6 -5 -5 -5 -4 -4 -3 -3 -3 -3 -2 -2 -2 ------- Run | Scr Mat Min Mat Min Exi Min Mat Gar Fac Gar Fac Was Fac Gar Fac Low Low Dat Pro Fac Gar Fac Gar Res Gar Res Gar Res Qua Sec Traps Triggered 41 | . 2 . 3 . . . 1 . 1 5 1 . 1 6 1 . . . . 7 8 . 1 . 2 1 1 . . . Indirectly 5 | . . . . . . . . . . . . . . . . . . . . . 4 . . . 1 . . . . . Trap Hack Attempts . | . . . . . . . . . . . . . . . . . . . . . . . . . . . . . . . Triggered . | . . . . . . . . . . . . . . . . . . . . . . . . . . . . . . . Disarmed 4 | . . . . . . . . . . . . . . . . . . . . 4 . . . . . . . . . . Reprogrammed . | . . . . . . . . . . . . . . . . . . . . . . . . . . . . . . . Reused . | . . . . . . . . . . . . . . . . . . . . . . . . . . . . . . . Traps Extracted . | . . . . . . . . . . . . . . . . . . . . . . . . . . . . . . . Installed . | . . . . . . . . . . . . . . . . . . . . . . . . . . . . . . . Triggered . | . . . . . . . . . . . . . . . . . . . . . . . . . . . . . . . Machines | -11 -10 -10 -9 -9 -9 -8 -8 -8 -7 -7 -6 -6 -6 -6 -6 -6 -6 -6 -5 -5 -5 -4 -4 -3 -3 -3 -3 -2 -2 -2 ---------- Run | Scr Mat Min Mat Min Exi Min Mat Gar Fac Gar Fac Was Fac Gar Fac Low Low Dat Pro Fac Gar Fac Gar Res Gar Res Gar Res Qua Sec Machines Disabled 87 | . . . . . 8 4 8 4 3 3 1 . 6 2 12 1 . 1 7 5 4 1 2 . 3 . 1 . 11 . Max in Single Turn 5 | . . . . . 2 1 1 2 2 1 1 . 5 1 3 1 . 1 4 2 1 1 1 . 2 . 1 . 1 . Garrison Access 2 | . . . . . . . . . . . . . . . . . . . . . . . . . . . . . 1 1 Garrison Relay 14 | . . . . . . . . 2 . 3 . . . 1 . . . . . . 4 . 2 . 1 . 1 . . . Phase Generator 1 | . . . . . . . . 1 . . . . . . . . . . . . . . . . . . . . . . Machines Sabotaged . | . . . . . . . . . . . . . . . . . . . . . . . . . . . . . . . Garrisons Compromised . | . . . . . . . . . . . . . . . . . . . . . . . . . . . . . . . Overloaded Fab Kills . | . . . . . . . . . . . . . . . . . . . . . . . . . . . . . . . Fab Network Shutdowns 2 | . . . . . . . . . 1 . . . . . 1 . . . . . . . . . . . . . . . Hacking | -11 -10 -10 -9 -9 -9 -8 -8 -8 -7 -7 -6 -6 -6 -6 -6 -6 -6 -6 -5 -5 -5 -4 -4 -3 -3 -3 -3 -2 -2 -2 --------- Run | Scr Mat Min Mat Min Exi Min Mat Gar Fac Gar Fac Was Fac Gar Fac Low Low Dat Pro Fac Gar Fac Gar Res Gar Res Gar Res Qua Sec Machines Accessed 116 | . 9 3 16 . 1 . 15 . 5 . 3 . 11 . 5 . . 4 . 13 . 6 . 1 . 5 . 3 13 3 Terminals 68 | . 7 2 10 . . . 10 . . . 3 . 5 . 2 . . . . 8 . 4 . . . 2 . 2 11 2 Fabricators 8 | . . . . . . . . . 2 . . . 2 . 1 . . . . 1 . . . . . 1 . 1 . . Repair Stations 5 | . . . 2 . . . 1 . . . . . . . 1 . . . . . . . . . . . . . 1 . Recycling Units 10 | . 2 . 2 . . . 1 . 1 . . . 2 . . . . . . 1 . 1 . . . . . . . . Scanalyzers 8 | . . . 2 . . . 2 . 1 . . . 1 . . . . . . 1 . . . . . 1 . . . . Garrison Access 11 | . . . . . . . 1 . 1 . . . 1 . 1 . . . . 2 . 1 . 1 . 1 . . 1 1 Total Hacks 436 | . 32 7 55 . 1 . 70 . 14 . 17 . 36 . 13 . . 25 . 54 . 14 . 1 . 16 . 12 55 14 Successful 279 | . 15 2 42 . 1 . 48 . 11 . 9 . 22 . 8 . . 25 . 30 . 12 . 1 . 7 . 5 34 7 Failed 153 | . 16 4 13 . . . 21 . 3 . 8 . 14 . 5 . . . . 24 . 2 . . . 9 . 7 20 7 Catastrophic 17 | . 2 1 1 . . . 1 . 1 . 1 . 2 . 1 . . . . 3 . 1 . . . 1 . . 2 . Database Lockouts 6 | . 2 1 . . . . 1 . . . . . . . . . . . . . . . . . . . . . 2 . Manual 210 | . 18 6 23 . 1 . 37 . 4 . 13 . 14 . 5 . . . . 28 . 6 . . . 5 . 6 39 5 Terminals 289 | . 25 6 36 . . . 52 . . . 17 . 18 . 7 . . . . 36 . 11 . . . 8 . 10 52 11 Fabricators 20 | . . . . . . . . . 4 . . . 4 . 2 . . . . 6 . . . . . 2 . 2 . . Repair Stations 10 | . . . 4 . . . 2 . . . . . . . 2 . . . . . . . . . . . . . 2 . Recycling Units 29 | . 7 . 5 . . . 3 . 2 . . . 9 . . . . . . 1 . 2 . . . . . . . . Scanalyzers 36 | . . . 10 . . . 7 . 4 . . . 4 . . . . . . 7 . . . . . 4 . . . . Garrison Access 25 | . . . . . . . 6 . 4 . . . 1 . 2 . . . . 4 . 1 . 1 . 2 . . 1 3 Terminal Hacks 135 | . 8 2 16 . 1 . 21 . . . 4 . 5 . 3 . . 25 . 11 . 6 . . . 3 . 3 23 4 Record 19 | . . . . . . . . . . . . . . . . . . 11 . . . . . . . 1 . 1 6 . Part Schematic 26 | . . . 2 . . . . . . . 3 . 2 . . . . 8 . 4 . 1 . . . . . . 4 2 Robot Schematic 6 | . . . . . . . . . . . . . 2 . . . . 3 . . . . . . . . . . 1 . Robot Analysis 7 | . 1 1 . . . . 3 . . . . . . . . . . . . 1 . . . . . . . . . 1 Prototype ID Bank 17 | . 4 . 2 . . . 4 . . . . . 1 . . . . 3 . 1 . 1 . . . 1 . . . . Open Door 2 | . . 1 . . . . . . . . . . . . . . . . . . . . . . . . . . 1 . Level Access Points 1 | . . . . . . . . . . . . . . . . . . . . . . . . . . . . . 1 . Branch Access Points 6 | . . . 1 . . . 1 . . . . . . . 1 . . . . 1 . 1 . . . . . . 1 . Terminal Index 6 | . . . 1 . . . 1 . . . 1 . . . . . . . . . . 1 . . . . . . 1 1 Alert Level 2 | . . . 2 . . . . . . . . . . . . . . . . . . . . . . . . . . . Unreport Threat 19 | . . . 3 . . . 5 . . . . . . . 2 . . . . 1 . 1 . . . 1 . 2 4 . Locate Traps 10 | . . . 3 . . . 3 . . . . . . . . . . . . 1 . 1 . . . . . . 2 . Disarm Traps 2 | . . . . . . . . . . . . . . . . . . . . 2 . . . . . . . . . . Hauler Manifests 4 | . 1 . 1 . . . 2 . . . . . . . . . . . . . . . . . . . . . . . Registered Components 1 | . . . . . . . 1 . . . . . . . . . . . . . . . . . . . . . . . Zone Layout 6 | . 2 . 1 . . . 1 . . . . . . . . . . . . . . . . . . . . . 2 . EX-Prototype ID Bank 1 | . . . . . 1 . . . . . . . . . . . . . . . . . . . . . . . . . Fabricator Hacks 12 | . . . . . . . . . 2 . . . 4 . 2 . . . . 2 . . . . . . . 2 . . Load Schematic 6 | . . . . . . . . . 1 . . . 2 . 1 . . . . 1 . . . . . . . 1 . . Build 6 | . . . . . . . . . 1 . . . 2 . 1 . . . . 1 . . . . . . . 1 . . Repair Station Hacks 10 | . . . 4 . . . 2 . . . . . . . 2 . . . . . . . . . . . . . 2 . Scan Component 5 | . . . 2 . . . 1 . . . . . . . 1 . . . . . . . . . . . . . 1 . Repair 5 | . . . 2 . . . 1 . . . . . . . 1 . . . . . . . . . . . . . 1 . Recycling Unit Hacks 9 | . 1 . 3 . . . 1 . 1 . . . 2 . . . . . . . . 1 . . . . . . . . Report Inventory 7 | . 1 . 2 . . . 1 . 1 . . . 1 . . . . . . . . 1 . . . . . . . . Retrieve Components 2 | . . . 1 . . . . . . . . . 1 . . . . . . . . . . . . . . . . . Scanalyzer 32 | . . . 10 . . . 6 . 4 . . . 4 . . . . . . 7 . . . . . 1 . . . . Insert Component 14 | . . . 4 . . . 2 . 2 . . . 2 . . . . . . 3 . . . . . 1 . . . . Analyze 18 | . . . 6 . . . 4 . 2 . . . 2 . . . . . . 4 . . . . . . . . . . Garrison Access Hacks 11 | . . . . . . . 2 . 1 . . . 1 . 1 . . . . 2 . 1 . 1 . 1 . . 1 . Unlock Access 9 | . . . . . . . 1 . 1 . . . 1 . 1 . . . . 2 . 1 . 1 . 1 . . . . Seal Access 1 | . . . . . . . . . . . . . . . . . . . . . . . . . . . . . 1 . Coupler Status 1 | . . . . . . . 1 . . . . . . . . . . . . . . . . . . . . . . . Unauthorized Hacks 70 | . 6 . 9 . . . 16 . 3 . 5 . 6 . . . . . . 8 . 4 . . . 2 . . 8 3 Terminals 54 | . 6 . 7 . . . 13 . . . 5 . 4 . . . . . . 5 . 3 . . . 1 . . 8 2 Track 12 | . 1 . 2 . . . 4 . . . 1 . . . . . . . . 1 . . . . . . . . 3 . Botnet 38 | . 4 . 4 . . . 8 . . . 3 . 4 . . . . . . 4 . 3 . . . 1 . . 5 2 Operators 4 | . 1 . 1 . . . 1 . . . 1 . . . . . . . . . . . . . . . . . . . Fabricators . | . . . . . . . . . . . . . . . . . . . . . . . . . . . . . . . Repair Stations . | . . . . . . . . . . . . . . . . . . . . . . . . . . . . . . . Recycling Units 8 | . . . 2 . . . 1 . 1 . . . 2 . . . . . . 1 . 1 . . . . . . . . Reject 6 | . . . 1 . . . 1 . 1 . . . 1 . . . . . . 1 . 1 . . . . . . . . Mask 2 | . . . 1 . . . . . . . . . 1 . . . . . . . . . . . . . . . . . Scanalyzers . | . . . . . . . . . . . . . . . . . . . . . . . . . . . . . . . Garrison Access 8 | . . . . . . . 2 . 2 . . . . . . . . . . 2 . . . . . 1 . . . 1 Reprogram 4 | . . . . . . . 1 . 1 . . . . . . . . . . 1 . . . . . 1 . . . . Watchers 3 | . . . . . . . 1 . 1 . . . . . . . . . . 1 . . . . . . . . . . Jam 1 | . . . . . . . . . . . . . . . . . . . . . . . . . . . . . . 1 Data Cores Recovered 5 | . . . . . . . 1 . . . 1 . 1 . 1 . . . . . . . . . . . . . 1 . Used 2 | . . . . . . . . . . . 1 . 1 . . . . . . . . . . . . . . . . . Hacking Detections 87 | . 9 2 13 . . . 14 . 1 . 3 . 7 . 3 . . . . 11 . 4 . . . 4 . 3 10 3 Full Trace Events 13 | . 2 2 1 . . . 1 . . . . . . . 1 . . . . 4 . . . . . . . . 2 . Feedback Events . | . . . . . . . . . . . . . . . . . . . . . . . . . . . . . . . Feedback Blocked . | . . . . . . . . . . . . . . . . . . . . . . . . . . . . . . . Robot Schematics Acquired 6 | . . . . . . . . . . . . . 2 . . . . 3 . . . . . . . . . . 1 . Robots Built . | . . . . . . . . . . . . . . . . . . . . . . . . . . . . . . . Matter 219 | . . . . . . . . . . . . . . . 219 . . . . . . . . . . . . . . . Time 116 | . . . . . . . . . . . . . . . 116 . . . . . . . . . . . . . . . Total Robot Build Rating . | . . . . . . . . . . . . . . . . . . . . . . . . . . . . . . . Part Schematics Acquired 39 | . . . 6 . . . 2 . 2 . 3 . 4 . . . . 8 . 7 . 1 . . . . . . 4 2 Parts Built 7 | . . . . . . . . . 2 . . . 2 . . . . . . 1 . . . . . . . 2 . . Matter 1133 | . . . . . . . . . 256 . . . 336 . . . . . . 285 . . . . . . . 256 . . Time 394 | . . . . . . . . . 128 . . . 126 . . . . . . 76 . . . . . . . 64 . . Total Part Build Rating 45 | . . . . . . . . . 16 . . . 8 . . . . . . 5 . . . . . . . 16 . . Parts Repaired 5 | . . . 2 . . . 1 . . . . . . . 1 . . . . . . . . . . . . . 1 . Time 183 | . . . 57 . . . 38 . . . . . . . 44 . . . . . . . . . . . . . 44 . Parts Recycled . | . . . . . . . . . . . . . . . . . . . . . . . . . . . . . . . Recycled Matter . | . . . . . . . . . . . . . . . . . . . . . . . . . . . . . . . Retrieved Matter . | . . . . . . . . . . . . . . . . . . . . . . . . . . . . . . . Retrieved Components 10 | . . . 1 . . . . . . . . . 9 . . . . . . . . . . . . . . . . . Parts Scanalyzed 14 | . . . 4 . . . 2 . 2 . . . 2 . . . . . . 3 . . . . . 1 . . . . Part Schematics Acquired 13 | . . . 4 . . . 2 . 2 . . . 2 . . . . . . 3 . . . . . . . . . . Parts Damaged . | . . . . . . . . . . . . . . . . . . . . . . . . . . . . . . . Bothacking | -11 -10 -10 -9 -9 -9 -8 -8 -8 -7 -7 -6 -6 -6 -6 -6 -6 -6 -6 -5 -5 -5 -4 -4 -3 -3 -3 -3 -2 -2 -2 ------------ Run | Scr Mat Min Mat Min Exi Min Mat Gar Fac Gar Fac Was Fac Gar Fac Low Low Dat Pro Fac Gar Fac Gar Res Gar Res Gar Res Qua Sec Used RIF Installer 7 | . . . . . . . . 1 . 1 . . . 1 . . . . . . 1 . 1 . 1 . 1 . . . Coupler Efficiency 2 | . . . . . . . . . . . . . . . . . . . . . . . . . 1 . 1 . . . Robot Detection 1 | . . . . . . . . . . 1 . . . . . . . . . . . . . . . . . . . . Alert ID Control 1 | . . . . . . . . . . . . . . 1 . . . . . . . . . . . . . . . . Program Shield 1 | . . . . . . . . . . . . . . . . . . . . . . . 1 . . . . . . . Autoassimilate 1 | . . . . . . . . . . . . . . . . . . . . . 1 . . . . . . . . . Robots Hacked 13 | . . . . . . . . . . . . . . . . . . . . . . 1 . . . . 2 5 5 . Non-combat . | . . . . . . . . . . . . . . . . . . . . . . . . . . . . . . . Combat 13 | . . . . . . . . . . . . . . . . . . . . . . 1 . . . . 2 5 5 . Autoassimilated 4 | . . . . . . . . . . . . . . . . . . . . . . . . . . . 2 1 1 . Robot Hacks Applied 14 | . . . . . . . . . . . . . . . . . . . . . . 1 . . . . . 8 5 . parse_system 2 | . . . . . . . . . . . . . . . . . . . . . . 1 . . . . . 1 . . link_fov 1 | . . . . . . . . . . . . . . . . . . . . . . . . . . . . 1 . . scatter_targeting 1 | . . . . . . . . . . . . . . . . . . . . . . . . . . . . . 1 . disable_weapons 1 | . . . . . . . . . . . . . . . . . . . . . . . . . . . . 1 . . overwrite_iff 8 | . . . . . . . . . . . . . . . . . . . . . . . . . . . . 4 4 . formatsys_high 1 | . . . . . . . . . . . . . . . . . . . . . . . . . . . . 1 . . Relay Couplers Released 21 | . . . . . . . . 4 . 4 . . . 2 . . . . . . 5 . 3 . 2 . 1 . . . Machine Destruction 21 | . . . . . . . . 4 . 4 . . . 2 . . . . . . 5 . 3 . 2 . 1 . . . Attached 5 | . . . . . . . . . . . . . . . . . . . . . . . 3 . 1 . 1 . . . Robots Rewired 18 | . . . . . . . . . . 6 . . . . . 4 2 . . . 6 . . . . . . . . . Allies Hacked 1 | . . . . . . . . . . . . . . . . . . . . 1 . . . . . . . . . . Hacks Repelled . | . . . . . . . . . . . . . . . . . . . . . . . . . . . . . . . Allies | -11 -10 -10 -9 -9 -9 -8 -8 -8 -7 -7 -6 -6 -6 -6 -6 -6 -6 -6 -5 -5 -5 -4 -4 -3 -3 -3 -3 -2 -2 -2 -------- Run | Scr Mat Min Mat Min Exi Min Mat Gar Fac Gar Fac Was Fac Gar Fac Low Low Dat Pro Fac Gar Fac Gar Res Gar Res Gar Res Qua Sec Total Allies 59 | . . 3 . 1 . . 3 . . 6 . 1 . . . 4 2 . . 6 6 . . . . 2 2 5 12 6 Largest Group 7 | . . 3 3 1 . . 3 3 . 6 6 1 1 . . 4 4 2 . 3 6 . . . . 2 3 2 7 6 Highest-Rated Group 180 | . . 40 40 31 . . 48 48 . 96 96 31 31 . . 113 113 59 . 108 180 . . . . 112 142 116 174 85 Highest-Rated Ally 58 | . . 16 16 31 . . 16 16 . 20 20 31 31 . . 31 31 30 . 54 30 . . . . 56 56 58 58 15 Total Orders 5 | . . . . . . . . . . . . . . . 2 . . 3 . . . . . . . . . . . . GOTO 2 | . . . . . . . . . . . . . . . . . . 2 . . . . . . . . . . . . GUARD 1 | . . . . . . . . . . . . . . . . . . 1 . . . . . . . . . . . . EXPLORE 2 | . . . . . . . . . . . . . . . 2 . . . . . . . . . . . . . . . Ally Attacks 489 | . . 1 20 . 37 . 1 28 . 10 27 31 12 . . 57 65 3 . 14 12 . . . . 10 36 5 96 24 Total Damage 10819 | . . 11 238 . 1832 . 18 348 . 86 342 420 156 . . 842 987 74 . 257 270 . . . . 269 1349 183 2487 650 Kills 66 | . . . 5 . 8 . . 7 . 1 6 1 2 . . 6 8 . . 3 1 . . . . 3 5 . 10 . Allies Corrupted 1 | . . . . . . . . . . . . . . . . . . . . . . . . . . . . 1 . . Allies Melted . | . . . . . . . . . . . . . . . . . . . . . . . . . . . . . . . Turrets Deployed 4 | . . . . . 3 . . . . . . . 1 . . . . . . . . . . . . . . . . . Intel | -11 -10 -10 -9 -9 -9 -8 -8 -8 -7 -7 -6 -6 -6 -6 -6 -6 -6 -6 -5 -5 -5 -4 -4 -3 -3 -3 -3 -2 -2 -2 ------- Run | Scr Mat Min Mat Min Exi Min Mat Gar Fac Gar Fac Was Fac Gar Fac Low Low Dat Pro Fac Gar Fac Gar Res Gar Res Gar Res Qua Sec Robot Analysis Total 7 | . 1 1 . . . . 3 . . . . . . . . . . . . 1 . . . . . . . . . 1 Derelict Logs Recovered 8 | . . 1 . 2 . . . . . . . . . . . 2 1 . 2 . . . . . . . . . . . Drone Launches 2 | . . . . . . . . . . . . . . . 2 . . . . . . . . . . . . . . . Drone Recoveries . | . . . . . . . . . . . . . . . . . . . . . . . . . . . . . . . Exploration | -11 -10 -10 -9 -9 -9 -8 -8 -8 -7 -7 -6 -6 -6 -6 -6 -6 -6 -6 -5 -5 -5 -4 -4 -3 -3 -3 -3 -2 -2 -2 ------------- Run | Scr Mat Min Mat Min Exi Min Mat Gar Fac Gar Fac Was Fac Gar Fac Low Low Dat Pro Fac Gar Fac Gar Res Gar Res Gar Res Qua Sec Turns Passed 21128 | 42 918 554 1284 389 1515 842 1622 672 1297 499 384 145 1003 828 1270 714 636 214 694 1200 695 324 361 66 253 338 363 308 1536 162 Spaces Moved 19842 | 42 1003 669 1155 520 1755 781 1155 755 1200 405 397 91 976 716 1105 729 604 161 583 1075 780 473 365 113 228 406 223 244 1013 120 Core 2 | 2 . . . . . . . . . . . . . . . . . . . . . . . . . . . . . . Treads . | . . . . . . . . . . . . . . . . . . . . . . . . . . . . . . . Legs . | . . . . . . . . . . . . . . . . . . . . . . . . . . . . . . . Wheels 125 | 40 85 . . . . . . . . . . . . . . . . . . . . . . . . . . . . . Hover 18442 | . 212 102 1155 520 1755 781 1155 755 1200 405 397 91 976 716 1105 729 604 161 583 1075 780 473 365 113 228 406 223 244 1013 120 Flight 1273 | . 706 567 . . . . . . . . . . . . . . . . . . . . . . . . . . . . Fastest Speed 34 | 50 37 34 58 58 58 65 58 58 58 68 68 68 68 68 68 68 68 68 68 60 53 53 53 53 53 53 53 53 53 60 Average Speed 60 | 78 59 42 58 58 60 65 60 58 59 68 68 68 68 68 68 68 68 68 68 60 53 53 53 53 53 53 53 53 60 60 Slowest Speed 140 | 80 140 80 116 58 65 65 65 58 68 68 68 68 68 68 72 68 68 68 68 72 60 53 53 53 53 53 53 113 125 60 Overloaded Moves . | . . . . . . . . . . . . . . . . . . . . . . . . . . . . . . . Propulsion Burnouts . | . . . . . . . . . . . . . . . . . . . . . . . . . . . . . . . Robots Hopped 6 | . 1 4 . . 1 . . . . . . . . . . . . . . . . . . . . . . . . . Cave-ins Triggered . | . . . . . . . . . . . . . . . . . . . . . . . . . . . . . . . Teleports 1 | . . . . . . . . . . . . . . . . . . . . . . . . . . . . . . 1 Exploration Rate (%) 57 | 3 97 98 92 96 93 99 95 73 33 58 14 86 29 83 32 91 74 80 67 28 88 13 46 4 43 9 50 10 81 13 Regions Visited 30 Branch Regions 10 Pre-discovered Areas 2 | . . . . . . . . . . . . . . . . 1 . 1 . . . . . . . . . . . . Known Exits Taken 15 | . . . 1 . . . 1 . 1 . . . 1 . 1 1 1 1 1 1 . 1 . 1 . 1 . 1 1 . Unknown Exits Taken 6 | 1 1 1 . 1 1 1 . . . . . . . . . . . . . . . . . . . . . . . . Scrap Searched 12 | . . 1 . 1 . 1 . . . . . . . . . 4 3 . 2 . . . . . . . . . . . Spaces Dug 16 | . . . . . . . . . 1 . . . . . . . . . . 5 2 1 . . . 3 . . 4 . Terrain Destroyed 539 | . . . . . 14 34 63 90 9 3 . 3 22 23 69 2 18 2 35 50 18 3 9 2 8 4 18 7 33 . Melee 16 | . . . . . . . . . 1 . . . . . . . . . . 5 2 1 . . . 3 . . 4 . Projectile 263 | . . . . . . 34 63 9 8 3 . 3 4 23 13 2 18 2 9 6 13 2 9 2 8 1 18 7 6 . AOE 260 | . . . . . 14 . . 81 . . . . 18 . 56 . . . 26 39 3 . . . . . . . 23 . Actions | -11 -10 -10 -9 -9 -9 -8 -8 -8 -7 -7 -6 -6 -6 -6 -6 -6 -6 -6 -5 -5 -5 -4 -4 -3 -3 -3 -3 -2 -2 -2 --------- Run | Scr Mat Min Mat Min Exi Min Mat Gar Fac Gar Fac Was Fac Gar Fac Low Low Dat Pro Fac Gar Fac Gar Res Gar Res Gar Res Qua Sec Total 25641 | 48 1182 844 1551 585 2030 966 1866 889 1670 539 479 133 1196 872 1411 885 742 240 733 1528 957 505 471 115 308 507 360 341 1498 190 Wait 2593 | . 61 96 203 55 120 56 520 49 356 26 41 13 121 23 126 47 30 38 . 327 23 . 23 . 5 75 29 14 88 28 Move 19795 | 41 1000 661 1154 519 1752 780 1154 753 1199 403 397 90 975 714 1104 728 603 160 582 1074 778 472 363 112 226 405 221 243 1012 120 Hop 5 | . 1 3 . . 1 . . . . . . . . . . . . . . . . . . . . . . . . . Pick Up 85 | 2 4 3 9 . 22 2 3 1 4 . . 1 4 . 4 3 1 . . 4 1 1 . . 2 1 . 3 9 1 Fast Attach 133 | 5 8 2 18 . 6 1 8 1 1 . 3 2 5 . 8 3 1 7 2 20 . 2 4 . . . 1 1 24 . Attach 34 | . 2 . 4 . 5 2 2 1 1 1 . . 1 . 4 . . . . 1 . . . 1 . . . 2 4 3 Detach 7 | . 1 . 1 . . . 1 . . . . 1 . . . . . . . . . . 1 . . . . . 2 . Swap 58 | . 1 5 6 . 4 1 4 . 8 . 1 . 2 . 2 4 . . . 4 3 1 1 . 1 2 3 2 1 2 Drop 163 | . 10 5 19 . 28 1 9 1 10 . 2 5 7 . 3 4 1 7 . 7 1 2 4 . 1 1 1 4 28 2 Fire 1233 | . 23 . 1 . 46 70 78 42 45 25 13 21 59 91 103 26 54 15 94 46 55 25 37 2 32 6 67 61 96 . Melee 528 | . 47 42 95 10 41 . 35 17 20 30 4 . . 1 1 6 2 1 3 9 10 2 2 . 2 7 1 . 130 10 Ram 2 | . 1 . . . . . . . . . . . . . . . . . . . . . . . . . . 1 . . Kick . | . . . . . . . . . . . . . . . . . . . . . . . . . . . . . . . Crush . | . . . . . . . . . . . . . . . . . . . . . . . . . . . . . . . Escape Stasis 115 | . . . . . . . . . . . . . . 12 . . . . . 1 24 . 13 . 27 . 13 . 2 23 Rewire 111 | . . . . . 1 . . . . 31 . . . . . 32 11 . . . 36 . . . . . . . . . Trap . | . . . . . . . . . . . . . . . . . . . . . . . . . . . . . . . Miscellaneous 779 | . 23 27 41 1 4 53 52 24 26 23 18 . 22 31 56 32 39 12 52 35 26 . 23 . 12 10 24 10 102 1 Route ------- -11/Scrapyard -10/Materials (discovered 4 exits: *Mat x3 / *Min) -10/Mines (discovered 2 exits: *Mat x2) -9/Materials (discovered 4 exits: *Mat x3 / *Min) -9/Mines (discovered 4 exits: *Mat x2 / *Exi / [*Zio]) -9/Exiles (discovered 2 exits: [*Min x2]) -8/Mines (discovered 2 exits: *Mat x2) -8/Materials (discovered 4 exits: *Fac x3 / Gar) -8/Garrison (discovered 2 exits: *Fac x2) -7/Factory (discovered 4 exits: *Fac x2 / *Low / Gar) -7/Garrison -6/Factory -6/Waste -6/Factory (discovered 2 exits: *Fac / Gar) -6/Garrison (discovered 3 exits: *Fac x3) -6/Factory (discovered 3 exits: *Low x2 / Gar) -6/Lower Caves -6/Lower Caves -6/Data Miner -5/Proximity Caves -5/Factory (discovered 5 exits: Fac / Upp x2 / Gar / Gar) -5/Garrison (discovered 3 exits: *Fac x3) -4/Factory (discovered 7 exits: *Res / *Upp x2 / Ext x2 / Arm / Gar) -4/Garrison -3/Research -3/Garrison -3/Research -3/Garrison -2/Research -2/Quarantine (discovered 2 exits: *Acc / *Sec) -2/Section 7 (discovered 1 exit: *Acc) History --------- Turn | Location | Event 2 | -11/Scrapyard | Upgraded with Propulsion slot (x1) 2 | -11/Scrapyard | Upgraded with Utility slot (x1) 2 | -11/Scrapyard | Upgraded with Weapon slot (x1) 9 | -11/Scrapyard | Discovered new exit (range 16) 43 | -11/Scrapyard | Entered Materials 111 | -10/Materials | Discovered new exit (range 16) 316 | -10/Materials | Build established: Mutant 348 | -10/Materials | Discovered new exit (range 16) 382 | -10/Materials | Discovered new exit (range 16) 458 | -10/Materials | Central database locked down 700 | -10/Materials | Reached level 2 703 | -10/Materials | Upgraded with Utility slot (x1) 758 | -10/Materials | Discovered new exit (range 5) 961 | -10/Materials | Entered Mines 1018 | -10/Mines | Joined a pair of Derelicts in attacking an 0b10 outpost 1110 | -10/Mines | Assembled infested the area 1175 | -10/Mines | Found a hidden stash of uninstalled traps 1176 | -10/Mines | Discovered new exit (range 8) 1177 | -10/Mines | Learned Materials garrison access intel 1185 | -10/Mines | Central database locked down 1203 | -10/Mines | Reached level 3 1260 | -10/Mines | Upgraded with Propulsion slot (x1) 1260 | -10/Mines | Upgraded with Utility slot (x1) 1299 | -10/Mines | Discovered new exit (range 17) 1392 | -10/Mines | Met a Derelict shopkeep closing up shop 1420 | -10/Mines | Assisted by bots powering up and referring to "LRC-V3" 1515 | -10/Mines | Entered Materials 1515 | -9/Materials | Accompanied by 3 allies 1517 | -9/Materials | Reached level 4 1518 | -9/Materials | Upgraded with Utility slot (x1) 1580 | -9/Materials | Reached level 5 1581 | -9/Materials | Upgraded with Power slot (x1) 1581 | -9/Materials | Upgraded with Weapon slot (x1) 1715 | -9/Materials | Build established: Scavenger-Mutant 1763 | -9/Materials | Core integrity fell below 50% 1820 | -9/Materials | Destroyed 8 combat bots 1964 | -9/Materials | Reached level 6 1974 | -9/Materials | Upgraded with Utility slot (x1) 2220 | -9/Materials | Repaired Hrd. Medium Armor Plating 2255 | -9/Materials | Discovered new exit (range 14) 2326 | -9/Materials | Discovered new exit (range 7) 2379 | -9/Materials | Identified exit to Mines 2463 | -9/Materials | Reached level 7 2474 | -9/Materials | Discovered new exit (range 16) 2619 | -9/Materials | Discovered new exit (range 15) 2742 | -9/Materials | Repaired Hrd. Medium Armor Plating 2799 | -9/Materials | Entered Mines 2825 | -9/Mines | Reached level 8 2894 | -9/Mines | Deemed a non-threat by the Exiles lab entrance 2895 | -9/Mines | Discovered new exit (range 5) 2907 | -9/Mines | Received a Mining Laser from a helpful Derelict 2909 | -9/Mines | Discovered new exit (range 6) 2917 | -9/Mines | Learned 4 Materials zone layouts 2969 | -9/Mines | Learned Materials emergency access door positions 2983 | -9/Mines | A Derelict revealed a hidden shortcut to a safe place 3035 | -9/Mines | Received a Rocket Launcher from a helpful Derelict 3085 | -9/Mines | Discovered new exit (range 11) 3188 | -9/Mines | Entered Exiles 3197 | -9/Exiles | Discovered new exit (range 15) 3234 | -9/Exiles | Met 8R-AWN 3243 | -9/Exiles | Met EX-HEX 3259 | -9/Exiles | Met EX-BIN 3267 | -9/Exiles | Aligned with FarCom system 3268 | -9/Exiles | Given EX-Vault access code 3282 | -9/Exiles | Opened EX-Vault 3288 | -9/Exiles | Found Deploy-a-Sentry 3289 | -9/Exiles | Found Deploy-a-Sentry 3291 | -9/Exiles | Found Deploy-a-Sentry 3303 | -9/Exiles | Warned to stay clear of 0b10 Research branches 3319 | -9/Exiles | Met EX-DEC 3326 | -9/Exiles | DAS Turret deployed 3340 | -9/Exiles | DAS Turret deployed 3361 | -9/Exiles | Visited The Gauntlet 3466 | -9/Exiles | DAS Turret deployed 3505 | -9/Exiles | Found Superbattery 3746 | -9/Exiles | Found 0b10 Alert Chip 3783 | -9/Exiles | Attacked by the Exiles 3795 | -9/Exiles | Allies destroyed EX-BIN 3805 | -9/Exiles | Allies destroyed EX-HEX 3894 | -9/Exiles | Destroyed 8R-AWN 3905 | -9/Exiles | Found Prototype Ballistic Gun 3907 | -9/Exiles | Found Prototype Ballistic Gun 3985 | -9/Exiles | Core integrity fell below 20% 4178 | -9/Exiles | Destroyed EX-DEC 4266 | -9/Exiles | Discovered new exit (range 14) 4515 | -9/Exiles | Identified 8R-AWN's Boregun (x2) 4520 | -9/Exiles | Found Deploy-a-Sentry 4703 | -9/Exiles | Stole three prototypes: Superbattery, 0b10 Alert Chip, Deploy-a-Sentry 4703 | -9/Exiles | Entered Mines 4768 | -8/Mines | Discovered new exit (range 5) 4829 | -8/Mines | Reached level 9 5042 | -8/Mines | Upgraded with Utility slot (x1) 5239 | -8/Mines | Discovered new exit (range 8) 5256 | -8/Mines | Reached level 10 5297 | -8/Mines | Upgraded with Utility slot (x1) 5545 | -8/Mines | Entered Materials 5546 | -8/Materials | Identified exit to Factory 5547 | -8/Materials | Reached level 11 5547 | -8/Materials | Upgraded with Weapon slot (x1) 5548 | -8/Materials | Loaded intel: 1 garrison access location 5829 | -8/Materials | Reached level 12 6090 | -8/Materials | Upgraded with Propulsion slot (x1) 6097 | -8/Materials | Discovered exit to Factory (range 16) 6371 | -8/Materials | Repaired Hrd. Medium Armor Plating 6829 | -8/Materials | Reached level 13 7022 | -8/Materials | Identified exit to Garrison 7029 | -8/Materials | Central database locked down 7121 | -8/Materials | Discovered exit to Factory (range 17) 7167 | -8/Materials | Entered Garrison 7167 | -8/Garrison | Accompanied by 3 allies 7208 | -8/Garrison | Triggered checkpoint 7272 | -8/Garrison | Triggered checkpoint 7310 | -8/Garrison | Discovered exit to Factory (range 15) 7322 | -8/Garrison | Garrison Relay disabled 7328 | -8/Garrison | Triggered checkpoint 7437 | -8/Garrison | Phase Generator disabled 7437 | -8/Garrison | Reached level 14 7440 | -8/Garrison | Upgraded with Utility slot (x1) 7542 | -8/Garrison | Triggered checkpoint 7620 | -8/Garrison | Triggered checkpoint 7638 | -8/Garrison | Triggered checkpoint 7702 | -8/Garrison | Garrison Relay disabled 7730 | -8/Garrison | Discovered exit to Factory (range 14) 7741 | -8/Garrison | Installed Relay Interface Framework 7839 | -8/Garrison | Entered Factory 7909 | -7/Factory | Reached level 15 8053 | -7/Factory | Found Prototype Launcher 8054 | -7/Factory | Identified Rocket Array 8227 | -7/Factory | Identified exit to Garrison 8265 | -7/Factory | Discovered new exit (range 10) 8296 | -7/Factory | Identified exit to Lower Caves 8374 | -7/Factory | Discovered new exit (range 5) 8376 | -7/Factory | Identified exit to Factory 8811 | -7/Factory | Discovered exit to Factory (range 17) 8929 | -7/Factory | Local fabrication network quarantined 9003 | -7/Factory | Fabricated Cmb. Antigrav System (x2) 9136 | -7/Factory | Entered Garrison 9138 | -7/Garrison | Reached level 16 9139 | -7/Garrison | Upgraded with Utility slot (x1) 9154 | -7/Garrison | Triggered checkpoint 9176 | -7/Garrison | Garrison Relay disabled 9230 | -7/Garrison | Triggered checkpoint 9290 | -7/Garrison | Triggered checkpoint 9312 | -7/Garrison | Triggered checkpoint 9330 | -7/Garrison | Discovered exit to Factory (range 15) 9332 | -7/Garrison | Triggered checkpoint 9373 | -7/Garrison | Garrison Relay disabled 9414 | -7/Garrison | Expanded RIF knowledge: Robot Detection 9438 | -7/Garrison | Garrison Relay disabled 9635 | -7/Garrison | Entered Factory 9635 | -6/Factory | Accompanied by 6 allies 9637 | -6/Factory | Reached level 17 9723 | -6/Factory | Reached level 18 9725 | -6/Factory | Upgraded with Utility slot (x1) 9985 | -6/Factory | First assault squad dispatched 10019 | -6/Factory | Sucked down chute 10019 | -6/Factory | Entered Waste 10020 | -6/Waste | Met a frightened Derelict 10021 | -6/Waste | Found Gamma Bomb Array 10033 | -6/Waste | Spotted C-40 Crusher 10034 | -6/Waste | EMP discharged 10034 | -6/Waste | Spotted C-40 Crusher 10053 | -6/Waste | Destroyed C-40 Crusher 10060 | -6/Waste | Found Damper Plating 10072 | -6/Waste | Spotted C-40 Crusher 10078 | -6/Waste | Destroyed C-40 Crusher 10082 | -6/Waste | Spotted C-40 Crusher 10097 | -6/Waste | Allies destroyed C-40 Crusher 10107 | -6/Waste | Spotted C-40 Crusher 10117 | -6/Waste | Destroyed C-40 Crusher 10122 | -6/Waste | Destroyed C-40 Crusher 10134 | -6/Waste | EMP discharged 10140 | -6/Waste | Destroyed C-40 Crusher 10151 | -6/Waste | Discovered new exit (range 12) 10158 | -6/Waste | Identified exit to Factory 10164 | -6/Waste | Entered Factory 10164 | -6/Factory | Accompanied by 1 ally 10635 | -6/Factory | Discovered new exit (range 8) 10649 | -6/Factory | Identified exit to Factory 10914 | -6/Factory | Reached level 19 11138 | -6/Factory | Fabricated Powered Armor (x2) 11144 | -6/Factory | DAS Turret deployed 11166 | -6/Factory | Identified exit to Garrison 11167 | -6/Factory | Entered Garrison 11196 | -6/Garrison | Triggered checkpoint 11235 | -6/Garrison | Garrison Relay disabled 11290 | -6/Garrison | Triggered checkpoint 11348 | -6/Garrison | Triggered checkpoint 11350 | -6/Garrison | Core integrity fell below 50% 11365 | -6/Garrison | Core integrity fell below 20% 11405 | -6/Garrison | Destroyed 7 combat bots 11444 | -6/Garrison | Triggered checkpoint 11524 | -6/Garrison | Discovered new exit (range 15) 11534 | -6/Garrison | Identified exit to Factory 11587 | -6/Garrison | Reached level 20 11625 | -6/Garrison | Discovered exit to Factory (range 9) 11656 | -6/Garrison | Triggered checkpoint 11778 | -6/Garrison | Discovered exit to Factory (range 15) 11793 | -6/Garrison | Expanded RIF knowledge: Alert ID Control 11814 | -6/Garrison | Triggered checkpoint 11995 | -6/Garrison | Entered Factory 12095 | -6/Factory | Repaired Imp. Shield Generator 12312 | -6/Factory | Spotted B-75 Beast 12345 | -6/Factory | First assault squad dispatched 12371 | -6/Factory | Destroyed B-75 Beast 12586 | -6/Factory | Destroyed 15 combat bots 12779 | -6/Factory | Identified exit to Lower Caves 12812 | -6/Factory | Local fabrication network quarantined 12923 | -6/Factory | Identified exit to Garrison 13067 | -6/Factory | Reached level 21 13265 | -6/Factory | Entered Lower Caves 13280 | -6/Lower Caves | Attacked by a delusional Derelict stockpiling Unaware 13509 | -6/Lower Caves | Spotted ZH-EQZ(f) 13510 | -6/Lower Caves | Encountered a Master Thief 13511 | -6/Lower Caves | Spotted FX-U4N(f) 13512 | -6/Lower Caves | Encountered a Master Thief 13513 | -6/Lower Caves | Destroyed ZH-EQZ(f) 13515 | -6/Lower Caves | Superbattery stolen by Master Thief 13519 | -6/Lower Caves | Allies destroyed FX-U4N(f) 13575 | -6/Lower Caves | Spotted OS-NEN(f) 13576 | -6/Lower Caves | Encountered a Master Thief 13582 | -6/Lower Caves | Superbattery stolen by Master Thief 13584 | -6/Lower Caves | Destroyed OS-NEN(f) 13655 | -6/Lower Caves | Spotted XH-N6J(f) 13656 | -6/Lower Caves | Encountered a Master Thief 13660 | -6/Lower Caves | Superbattery stolen by Master Thief 13661 | -6/Lower Caves | Destroyed XH-N6J(f) 13735 | -6/Lower Caves | Attacked by a faux Warlord 13779 | -6/Lower Caves | Learned Factory machine intel 13823 | -6/Lower Caves | Encountered a Warlord checkpoint 13950 | -6/Lower Caves | Discovered new exit (range 5) 13953 | -6/Lower Caves | Identified exit to Lower Caves 13979 | -6/Lower Caves | Entered another Lower Caves area 13979 | -6/Lower Caves | Accompanied by 4 allies 14075 | -6/Lower Caves | Attracted the attention of an 0b10 outpost 14260 | -6/Lower Caves | Attracted the attention of an 0b10 checkpoint 14324 | -6/Lower Caves | Upgraded with Weapon slot (x1) 14330 | -6/Lower Caves | Learned location of 1 exit from Factory 14332 | -6/Lower Caves | Spotted YV-H3Z(f) 14333 | -6/Lower Caves | Encountered a Master Thief 14335 | -6/Lower Caves | Spotted QV-AEN(f) 14336 | -6/Lower Caves | Encountered a Master Thief 14362 | -6/Lower Caves | Allies destroyed QV-AEN(f) 14408 | -6/Lower Caves | Spotted QJ-9AJ(f) 14409 | -6/Lower Caves | Encountered a Master Thief 14409 | -6/Lower Caves | Destroyed QJ-9AJ(f) 14472 | -6/Lower Caves | Encountered a Warlord checkpoint 14583 | -6/Lower Caves | Discovered new exit (range 8) 14596 | -6/Lower Caves | Identified exit to Data Miner 14615 | -6/Lower Caves | Entered Data Miner 14615 | -6/Data Miner | Accompanied by 2 allies 14615 | -6/Data Miner | Discovered new exit (range 6) 14619 | -6/Data Miner | Identified exit to Proximity Caves 14628 | -6/Data Miner | Met Data Miner 14643 | -6/Data Miner | Learned location of Section 7 (-2) 14643 | -6/Data Miner | Acquired the access code to Warlord's prototype stash 14654 | -6/Data Miner | Received God Mode back door access code from Data Miner 14715 | -6/Data Miner | Data Conduit disabled 14795 | -6/Data Miner | Found Prototype Device 14795 | -6/Data Miner | Identified Exp. Thermal Shield 14829 | -6/Data Miner | Entered Proximity Caves 14831 | -5/Proximity Caves | Reached level 22 14864 | -5/Proximity Caves | Spotted B-75 Beast 14880 | -5/Proximity Caves | Destroyed B-75 Beast 15028 | -5/Proximity Caves | Learned Factory garrison access intel 15033 | -5/Proximity Caves | Attracted the attention of an 0b10 base 15087 | -5/Proximity Caves | Destroyed 12 combat bots 15185 | -5/Proximity Caves | Spotted OA-UVU(f) 15186 | -5/Proximity Caves | Encountered a Master Thief 15188 | -5/Proximity Caves | Spotted JW-66Q(f) 15189 | -5/Proximity Caves | Encountered a Master Thief 15194 | -5/Proximity Caves | Superbattery stolen by Master Thief 15195 | -5/Proximity Caves | Destroyed JW-66Q(f) 15293 | -5/Proximity Caves | Learned 4 Factory zone layouts 15446 | -5/Proximity Caves | Discovered exit to Factory (range 16) 15523 | -5/Proximity Caves | Entered Factory 15524 | -5/Factory | Identified exit to Factory 15526 | -5/Factory | Loaded intel: 290 machine locations 15527 | -5/Factory | Loaded intel: 4 garrison access locations 15530 | -5/Factory | Reached level 23 15854 | -5/Factory | Identified exit to Garrison 15949 | -5/Factory | Allied Derelicts emerged from ambush trap array 16092 | -5/Factory | Identified exit to Upper Caves 16173 | -5/Factory | Upgraded with Utility slot (x1) 16497 | -5/Factory | Fabricated Exp. Targeting Computer (x1) 16611 | -5/Factory | Garrison activated, responded to threat 16720 | -5/Factory | Identified exit to Garrison 16723 | -5/Factory | First assault squad dispatched 16723 | -5/Factory | Entered Garrison 16775 | -5/Garrison | Garrison Relay disabled 16814 | -5/Garrison | Triggered checkpoint 16874 | -5/Garrison | Triggered checkpoint 16888 | -5/Garrison | Triggered checkpoint 16916 | -5/Garrison | Triggered checkpoint 16955 | -5/Garrison | Spotted B-75 Beast 16978 | -5/Garrison | Destroyed B-75 Beast 17028 | -5/Garrison | Discovered exit to Factory (range 11) 17054 | -5/Garrison | Triggered checkpoint 17072 | -5/Garrison | Garrison Relay disabled 17135 | -5/Garrison | Discovered exit to Factory (range 15) 17159 | -5/Garrison | Garrison Relay disabled 17196 | -5/Garrison | Triggered checkpoint 17201 | -5/Garrison | Reached level 24 17256 | -5/Garrison | Discovered exit to Factory (range 15) 17264 | -5/Garrison | Destroyed 8 combat bots 17268 | -5/Garrison | Expanded RIF knowledge: Autoassimilate 17288 | -5/Garrison | Garrison Relay disabled 17342 | -5/Garrison | Triggered checkpoint 17418 | -5/Garrison | Entered Factory 17444 | -4/Factory | Upgraded with Power slot (x1) 17520 | -4/Factory | Discovered new exit (range 4) 17521 | -4/Factory | Identified exit to Research 17540 | -4/Factory | Identified exit to Upper Caves 17540 | -4/Factory | Identified exit to Extension 17540 | -4/Factory | Identified exit to Armory 17668 | -4/Factory | First assault squad dispatched 17712 | -4/Factory | Reached level 25 17742 | -4/Factory | Identified exit to Garrison 17742 | -4/Factory | Entered Garrison 17768 | -4/Garrison | Triggered checkpoint 17803 | -4/Garrison | Garrison Relay disabled 17831 | -4/Garrison | Spotted B-86 Titan 17846 | -4/Garrison | Triggered checkpoint 17896 | -4/Garrison | Destroyed B-86 Titan 18014 | -4/Garrison | Triggered checkpoint 18030 | -4/Garrison | Garrison Relay disabled 18053 | -4/Garrison | Discovered exit to Research (range 16) 18071 | -4/Garrison | Expanded RIF knowledge: Program Shield 18103 | -4/Garrison | Entered Research 18105 | -3/Research | Reached level 26 18105 | -3/Research | Reached level 27 18139 | -3/Research | Upgraded with Utility slot (x1) 18168 | -3/Research | Identified exit to Garrison 18169 | -3/Research | Entered Garrison 18199 | -3/Garrison | Garrison Relay disabled 18214 | -3/Garrison | Triggered checkpoint 18312 | -3/Garrison | Spotted B-86 Titan 18337 | -3/Garrison | Triggered checkpoint 18337 | -3/Garrison | Triggered checkpoint 18380 | -3/Garrison | Destroyed B-86 Titan 18408 | -3/Garrison | Discovered new exit (range 12) 18414 | -3/Garrison | Identified exit to Research 18418 | -3/Garrison | Expanded RIF knowledge: Coupler Efficiency 18422 | -3/Garrison | Entered Research 18472 | -3/Research | Reached level 28 18481 | -3/Research | Found Antimissile System 18492 | -3/Research | Identified exit to Garrison 18760 | -3/Research | Entered Garrison 18760 | -3/Garrison | Accompanied by 2 allies 18774 | -3/Garrison | Triggered checkpoint 18798 | -3/Garrison | Garrison Relay disabled 18863 | -3/Garrison | Spotted B-86 Titan 18892 | -3/Garrison | Allies destroyed B-86 Titan 18913 | -3/Garrison | Triggered checkpoint 18918 | -3/Garrison | Triggered checkpoint 18936 | -3/Garrison | Triggered checkpoint 18941 | -3/Garrison | Core integrity fell below 50% 19039 | -3/Garrison | Destroyed 15 combat bots 19110 | -3/Garrison | Discovered new exit (range 10) 19116 | -3/Garrison | Identified exit to Research 19119 | -3/Garrison | Expanded RIF knowledge: Coupler Efficiency 19119 | -3/Garrison | Reached level 29 19123 | -3/Garrison | Entered Research 19141 | -2/Research | Reached level 30 19175 | -2/Research | Upgraded with Utility slot (x1) 19260 | -2/Research | Core integrity fell below 50% 19285 | -2/Research | Fabricated Linear Accelerator (x2) 19295 | -2/Research | Spotted B-90 Cyclops 19411 | -2/Research | First assault squad dispatched 19424 | -2/Research | Discovered new exit (range 14) 19431 | -2/Research | Identified exit to Quarantine 19431 | -2/Research | Entered Quarantine 19525 | -2/Quarantine | Scanned by Researcher 19529 | -2/Quarantine | Reached level 31 19611 | -2/Quarantine | Repaired Powered Armor 19792 | -2/Quarantine | Found Alien Artifact 19792 | -2/Quarantine | Identified Core Reset Matrix 19792 | -2/Quarantine | Used Core Reset Matrix 19796 | -2/Quarantine | Detected hypermatrix surge 19796 | -2/Quarantine | Sensed 13 artifacts in vicinity 19884 | -2/Quarantine | Spotted Alpha 7 19892 | -2/Quarantine | Destroyed 8 combat bots 19966 | -2/Quarantine | Found Sigix Terminator 19979 | -2/Quarantine | Reached level 32 20087 | -2/Quarantine | Found Subatomic Replicator 20162 | -2/Quarantine | Found Sigix Broadsword 20234 | -2/Quarantine | Met incapacitated Sigix Warrior 20234 | -2/Quarantine | Lockdown squad dispatched 20249 | -2/Quarantine | Used Subatomic Replicator to replicate Sigix Broadsword 20264 | -2/Quarantine | Acquired the access code to the Sigix quarantine chamber 20266 | -2/Quarantine | Unlocked Sigix quarantine chamber 20277 | -2/Quarantine | Identified exit to Access 20278 | -2/Quarantine | Central database locked down 20281 | -2/Quarantine | Build established: Scavenger-Scout 20303 | -2/Quarantine | Spotted Lightning 20303 | -2/Quarantine | Spotted Lightning 20303 | -2/Quarantine | Spotted Lightning 20316 | -2/Quarantine | Destroyed Lightning 20371 | -2/Quarantine | Destroyed Lightning 20393 | -2/Quarantine | Emitted hypermatrix ping 20398 | -2/Quarantine | Assembled emerged from beneath the floor 20399 | -2/Quarantine | Core integrity fell below 20% 20565 | -2/Quarantine | Found Sigix Corpse 20654 | -2/Quarantine | Reached level 33 20733 | -2/Quarantine | Found Hpw. Transdimensional Reconstructor 20820 | -2/Quarantine | Spotted Fortress 20910 | -2/Quarantine | Destroyed Fortress 20931 | -2/Quarantine | First assault squad dispatched 20965 | -2/Quarantine | Discovered new exit (range 5) 20967 | -2/Quarantine | Identified exit to Section 7 20967 | -2/Quarantine | Entered Section 7 20968 | -2/Section 7 | Emitted hypermatrix ping 20968 | -2/Section 7 | Sensed 23 artifacts in vicinity 20973 | -2/Section 7 | Assembled emerged from beneath the floor 21002 | -2/Section 7 | Garrison activated, responded to threat 21032 | -2/Section 7 | Warped through subspace 21070 | -2/Section 7 | Discovered exit to Access (range 3) 21096 | -2/Section 7 | Scanned by Researcher 21129 | -2/Section 7 | Destroyed by G-73 Enforcer with Phase Gun Last Messages --------------- 21029_ Slug penetrates Garrison Access. 21031_ Penetrated by Slug. 21031_ Slug penetrates Wall. 21032_ Warped through subspace. 21038_ Acquired Unknown Device. 21039_ Identified Force Field. 21040_ Dropped Force Field. 21070_ EXIT=FOUND: ACCESS 21096_ W-44 Eye destroyed. 21096_ C-65 Expert calls for reinforcements. 21096_ ALERT: Hostile activity reported, dispatching reinforcements to area. 21096_ Held in stasis. 21096_ C-65 Expert is analyzing... 21096_ ALERT: Modified LRC-V3 signature confirmed. [Achievement: Signature Confirmed] 21097_ K-01 Serf cleans the Cell Assembler. 21100_ Held in stasis. 21129_ Dropped Sigix Broadsword. 21129_ Held in stasis. [Achievement: Tester] Map ----- +----------------------------------------------------+ | ?????????????????????????????????????????????????? | | ??????????????!??????????????????????????????????? | | ?????????????????????????????????????????????????? | | ?????????????????????????????????????!???????????? | | ?????????????????????????????????????????????????? | | ?????????????????????????????????????????????????? | | ?????????????????????????????????????????????????? | | ?????????????????????????????????????????????????? | | ?????????????????????????????????????????????????? | | ???????? ???????????????????????????????????????? | | ???????? ????????????????????????????????????? | | ??????? ???????????????????????????????????? | | ####### ???????????????????????????????????? | | ???????????????????????????????????? | | #??????????????????????????????????? | | ??????????????????????????????????? | | ??????????????????????????????????? | | ???##########??????????????????????? | | ???? #??????????????????????? | | ????? #??????????????????????? | | """"?"" """"""" #??????????????????????? | | """"""" """"""" u??????????????######### | | """"""" """"""" #??????######### | | #????? # """ | | #????# ! # """ | | @#????# # ! """ | | #????# """"""" # """ | | ! #????# """"""" # """ | | ### =% #????# """"""" # """ | | #?? #????# # """ | | #??? g g#????# # | | ##########+########### g #############+######+### | | """ #????????????????# g c | | "T" #????????????????# < | | " " #????????????????# c | | #????????????????# | | #????????????????####+##################+##### | | #?????????????????? ???????# | | #???????????????? ?????# """ """ """ " | | """ #??????????????# """""" #???? " " " " " " " | | """ #??????????????# """""""" #???? """ """ """ " | | """ #??????????????# """""" #???? | | #??????????????# #????? | | #??????????????# #???? | | ####???????????????#############???############### | | | | | | | | | | | +----------------------------------------------------+ Best States ------------- Heat Dissipation 80 Coolant Potential 50 Energy Generation 65 Energy Capacity 2445 Matter Stores 550 Matter Capacity 550 Sight Range 18 Robot Scan Range 12 Terrain Scan Density 10 Cloak Strength 3 Power Amplification 20 Armor Coverage 1200 Resistance: KI 30 Resistance: TH 5 Resistance: EX 5 Resistance: EM 90 Weapon Cycling 15 Melee Speed Boost 30 Phase Shifting 15 Evasion (%) 79 Targeting Accuracy 20 Target Analysis 8 Core Analysis 10 Armor Integrity Analysis 33 Salvage Targeting 1 Offensive Hacking 24 Defensive Hacking 12 Item Schematics ----------------- Exp. Signal Interpreter | -2/Quarantine | Hacked Adv. Heavy Siege Treads | -2/Quarantine | Hacked Imp. Q-thruster | -2/Quarantine | Hacked Biometal Heavy Treads | -2/Quarantine | Hacked Adv. Reaction Control System | -2/Section 7 | Hacked Cmb. Linear Gravjet | -2/Section 7 | Hacked Robot Schematics ------------------ B-74 Champion | -2/Quarantine | Hacked Fabricated ------------ Cmb. Antigrav System | x2 | -7/Factory Powered Armor | x2 | -6/Factory Exp. Targeting Computer | x1 | -5/Factory Linear Accelerator | x2 | -2/Research Alien Tech Used ----------------- Core Reset Matrix Sigix Terminator Sigix Broadsword Subatomic Replicator High-powered Transdimensional Reconstructor Achievements -------------- Collateral Damage Signature Confirmed Tester Challenges ------------ None RPGLIKE | -11 -10 -10 -9 -9 -9 -8 -8 -8 -7 -7 -6 -6 -6 -6 -6 -6 -6 -6 -5 -5 -5 -4 -4 -3 -3 -3 -3 -2 -2 -2 --------- Run | Scr Mat Min Mat Min Exi Min Mat Gar Fac Gar Fac Was Fac Gar Fac Low Low Dat Pro Fac Gar Fac Gar Res Gar Res Gar Res Qua Sec Levels Raised 32 | . 1 1 4 1 . 2 3 1 1 1 2 . 1 1 1 . . . 1 1 1 1 . 2 . 1 1 1 3 . XP Earned 51755 | 3000 2090 2137 5748 773 243 3200 4272 1395 2556 1259 2359 103 1302 1352 1373 283 640 105 1282 1283 1017 1270 999 2076 1376 330 1223 1906 4186 617 XP Spent 50960 | 2350 1450 1900 6285 . . 4300 2810 2600 . 2900 3200 280 1000 605 1120 . 1400 . . 3650 . 800 . 3800 . . 1900 4100 4510 . Upgrades 72 | 6 5 2 12 . . 2 7 1 . 1 1 2 1 8 4 . 1 . . 2 . 1 . 1 . . 4 1 10 . Power Slot 2 | . . . 1 . . . . . . . . . . . . . . . . . . 1 . . . . . . . . Propulsion Slot 3 | 1 . 1 . . . . 1 . . . . . . . . . . . . . . . . . . . . . . . Utility Slot 13 | 1 1 1 2 . . 2 . 1 . 1 1 . . . . . . . . 1 . . . 1 . . . 1 . . Weapon Slot 4 | 1 . . 1 . . . 1 . . . . . . . . . 1 . . . . . . . . . . . . . Core Integrity 12 | . . . . . . . 1 . . . . . . 7 2 . . . . . . . . . . . . . 2 . Heat Dissipation 6 | . 1 . 2 . . . 1 . . . . 1 . 1 . . . . . . . . . . . . . . . . Matter Storage 2 | . . . . . . . . . . . . . . . . . . . . . . . . . . . . . 2 . Mass Support 3 | 1 . . 1 . . . . . . . . . . . . . . . . . . . . . . . . . 1 . Inventory Capacity 5 | 2 . . 1 . . . . . . . . . 1 . . . . . . . . . . . . . . . 1 . Sight Range 2 | . 1 . . . . . . . . . . . . . . . . . . . . . . . . . . . 1 . Sensor Range 6 | . . . 3 . . . 1 . . . . . . . . . . . . 1 . . . . . . . . 1 . Ranged Accuracy 5 | . . . . . . . . . . . . . . . 2 . . . . . . . . . . . 2 . 1 . Melee Accuracy 2 | . 2 . . . . . . . . . . . . . . . . . . . . . . . . . . . . . Hack Attack % 2 | . . . . . . . . . . . . . . . . . . . . . . . . . . . 2 . . . KI Resistance % 1 | . . . 1 . . . . . . . . . . . . . . . . . . . . . . . . . . . TH Resistance % 1 | . . . . . . . 1 . . . . . . . . . . . . . . . . . . . . . . . EX Resistance % 1 | . . . . . . . . . . . . 1 . . . . . . . . . . . . . . . . . . KI Damage % 1 | . . . . . . . 1 . . . . . . . . . . . . . . . . . . . . . . . TH Damage % 1 | . . . . . . . . . . . . . . . . . . . . . . . . . . . . . 1 . Protomatter Created 7614 | . 220 184 225 8 36 373 427 233 340 194 120 90 250 354 818 199 241 90 580 271 406 . 272 . 268 82 282 153 853 45 Integrity Restored 16016 | . 481 507 778 24 90 1108 1073 397 448 481 359 . 447 648 1188 659 805 270 1135 686 470 . 470 . 187 212 518 240 2311 24 Core 11722 | . 402 397 597 24 90 838 677 271 297 305 188 . 279 648 1188 329 209 270 791 267 296 . 301 . 150 115 514 240 2015 24 Parts 4294 | . 79 110 181 . . 270 396 126 151 176 171 . 168 . . 330 596 . 344 419 174 . 169 . 37 97 4 . 296 . Protomatter Decayed 2960 | . 58 118 68 . . . 62 175 179 42 122 . 70 148 213 . 146 52 58 127 330 . 109 . 107 41 279 53 366 37 Game ------ Seed ArmageddonShockUnit Manual? 0 Play Time 06:43:30 Cumulative 90.5 hours Start 2020.07.19 @ 17:00:23 End 2020.07.20 @ 02:55:42 Sessions 3 Manual Loads 0 Difficulty Rogue Special Mode Winter2019/RPGLIKE Game No. 39 Rogue 39 Adventurer 0 Explorer 0 Win Type - Total 1 Types 0/0/0/1/0/0/0 Lore% 60 Gallery% 51 Achievement% 55 Wizard Run 0 Options --------- ASCII 0 Keyboard 0 Movement Numpad Keybinds 0 Fullscreen 1 Font 14/SmallcapsGlow Map View 84x54 Tactical HUD 1 Map Filters NONE Filters NONE Steam 1 RUN: 712587e6-b6bf-439e-a714-e6dfddc8c4ca